Workbook

Sheet 旅客１（１）
A1: １．機関別輸送人員の推移
A3: （１） 北海道内（相互間）機関別輸送人員の推移
AO4: （単位：千人、％）
A5: 年度 | B5: 区分 | C5: 鉄 道 ・ 軌 道 | U5: 自 動 車 | AG5: 船 舶 | AJ5: 航 空 | AM5: 合 計 | AP5: 前年度 対 比
C6: Ｊ Ｒ | L6: ＪＲ以外の鉄道・軌道
C7: 定 期 | F7: 定 期 外 | I7: 計 | L7: 定 期 | O7: 定 期 外 | R7: 計 | U7: 乗合バス | X7: 貸切バス | AA7: ハイヤー タクシー | AD7: 計
A8: 元 | C8: 78006 | F8: 54449 | I8: 132455 | L8: 80094 | O8: 158891 | R8: 238985 | U8: 176262 | X8: 12918 | AA8: 84513 | AD8: 273693 | AG8: 1535 | AJ8: 772 | AM8: =SUM(I8+R8+AD8+AG8+AJ8) -> 647440 | AP8: 96.8
C9: ( | D9: =C8/AM8*100 -> 12.04837514 | E9: ) | F9: ( | G9: =F8/AM8*100 -> 8.409891264 | H9: ) | I9: ( | J9: =I8/AM8*100 -> 20.4582664 | K9: ) | L9: ( | M9: =L8/AM8*100 -> 12.37087607 | N9: ) | O9: ( | P9: =O8/AM8*100 -> 24.54142469 | Q9: ) | R9: ( | S9: =R8/AM8*100 -> 36.91230075 | T9: ) | U9: ( | V9: =U8/AM8*100 -> 27.22445323 | W9: ) | X9: ( | Y9: =X8/AM8*100 -> 1.995242802 | Z9: ) | AA9: ( | AB9: =AA8/AM8*100 -> 13.05341035 | AC9: ) | AD9: ( | AE9: =AD8/AM8*100 -> 42.27310639 | AF9: ) | AG9: ( | AH9: =AG8/AM8*100 -> 0.2370876066 | AI9: ) | AJ9: ( | AK9: =AJ8/AM8*100 -> 0.1192388484 | AL9: ) | AM9: ( | AN9: =SUM(J9+S9+AE9+AH9+AK9) -> 100 | AO9: )
A10: 2 | C10: 65103 | F10: 28737 | I10: 93840 | L10: 60799 | O10: 112211 | R10: 173010 | U10: 125986 | X10: 5803 | AA10: 55266 | AD10: 187055 | AG10: 550 | AJ10: 415 | AM10: =SUM(I10+R10+AD10+AG10+AJ10) -> 454870 | AP10: =AM10/AM8*100 -> 70.25670332
C11: ( | D11: =C10/AM10*100 -> 14.31244092 | E11: ) | F11: ( | G11: =F10/AM10*100 -> 6.317629213 | H11: ) | I11: ( | J11: =I10/AM10*100 -> 20.63007013 | K11: ) | L11: ( | M11: =L10/AM10*100 -> 13.36623651 | N11: ) | O11: ( | P11: =O10/AM10*100 -> 24.66880647 | Q11: ) | R11: ( | S11: =R10/AM10*100 -> 38.03504298 | T11: ) | U11: ( | V11: =U10/AM10*100 -> 27.69714424 | W11: ) | X11: ( | Y11: =X10/AM10*100 -> 1.275749115 | Z11: ) | AA11: ( | AB11: =AA10/AM10*100 -> 12.14984501 | AC11: ) | AD11: ( | AE11: =AD10/AM10*100 -> 41.12273836 | AF11: ) | AG11: ( | AH11: =AG10/AM10*100 -> 0.1209136676 | AI11: ) | AJ11: ( | AK11: =AJ10/AM10*100 -> 0.09123485831 | AL11: ) | AM11: ( | AN11: =SUM(J11+S11+AE11+AH11+AK11) -> 100 | AO11: )
A12: 3 | C12: 63351 | F12: 32162 | I12: 95513 | L12: 62861 | O12: 122626 | R12: 185487 | U12: 128660 | X12: 5942 | AA12: 54358 | AD12: 188960 | AG12: 564 | AJ12: 484 | AM12: =SUM(I12+R12+AD12+AG12+AJ12) -> 471008 | AP12: =AM12/AM10*100 -> 103.5478269
C13: ( | D13: =C12/AM12*100 -> 13.45009002 | E13: ) | F13: ( | G13: =F12/AM12*100 -> 6.828334126 | H13: ) | I13: ( | J13: =I12/AM12*100 -> 20.27842415 | K13: ) | L13: ( | M13: =L12/AM12*100 -> 13.34605782 | N13: ) | O13: ( | P13: =O12/AM12*100 -> 26.03480196 | Q13: ) | R13: ( | S13: =R12/AM12*100 -> 39.38085977 | T13: ) | U13: ( | V13: =U12/AM12*100 -> 27.31588423 | W13: ) | X13: ( | Y13: =X12/AM12*100 -> 1.261549698 | Z13: ) | AA13: ( | AB13: =AA12/AM12*100 -> 11.54078062 | AC13: ) | AD13: ( | AE13: =AD12/AM12*100 -> 40.11821455 | AF13: ) | AG13: ( | AH13: =AG12/AM12*100 -> 0.1197431891 | AI13: ) | AJ13: ( | AK13: =AJ12/AM12*100 -> 0.1027583396 | AL13: ) | AM13: ( | AN13: =SUM(J13+S13+AE13+AH13+AK13) -> 100 | AO13: )
A14: 4 | C14: 65719 | F14: 44039 | I14: 109758 | L14: 72049 | O14: 142142 | R14: 214191 | U14: 144360 | X14: 8741 | AA14: 66779 | AD14: 218521 | AG14: 933 | AJ14: 732 | AM14: =SUM(I14+R14+AD14+AG14+AJ14) -> 544135 | AP14: =AM14/AM12*100 -> 115.5256386
C15: ( | D15: =C14/AM14*100 -> 12.07770131 | E15: ) | F15: ( | G15: =F14/AM14*100 -> 8.09339594 | H15: ) | I15: ( | J15: =I14/AM14*100 -> 20.17109725 | K15: ) | L15: ( | M15: =L14/AM14*100 -> 13.24101556 | N15: ) | O15: ( | P15: =O14/AM14*100 -> 26.1225615 | Q15: ) | R15: ( | S15: =R14/AM14*100 -> 39.36357705 | T15: ) | U15: ( | V15: =U14/AM14*100 -> 26.53018093 | W15: ) | X15: ( | Y15: =X14/AM14*100 -> 1.606402823 | Z15: ) | AA15: ( | AB15: =AA14/AM14*100 -> 12.2725059 | AC15: ) | AD15: ( | AE15: =AD14/AM14*100 -> 40.15933546 | AF15: ) | AG15: ( | AH15: =AG14/AM14*100 -> 0.1714648019 | AI15: ) | AJ15: ( | AK15: =AJ14/AM14*100 -> 0.1345254395 | AL15: ) | AM15: ( | AN15: =SUM(J15+S15+AE15+AH15+AK15) -> 100 | AO15: )
A16: 5 | C16: 67471 | F16: 51518 | I16: 118989 | L16: 79372 | O16: 153649 | R16: 233020 | U16: 145895 | X16: 10510 | AA16: 66463 | AD16: 222868 | AG16: 1262 | AJ16: 832 | AM16: =SUM(I16+R16+AD16+AG16+AJ16) -> 576971 | AP16: =AM16/AM14*100 -> 106.0345319
C17: ( | D17: =C16/AM16*100 -> 11.69400195 | E17: ) | F17: ( | G17: =F16/AM16*100 -> 8.929044961 | H17: ) | I17: ( | J17: =I16/AM16*100 -> 20.62304691 | K17: ) | L17: ( | M17: =L16/AM16*100 -> 13.75667061 | N17: ) | O17: ( | P17: =O16/AM16*100 -> 26.63028124 | Q17: ) | R17: ( | S17: =R16/AM16*100 -> 40.38677854 | T17: ) | U17: ( | V17: =U16/AM16*100 -> 25.28636621 | W17: ) | X17: ( | Y17: =X16/AM16*100 -> 1.821582021 | Z17: ) | AA17: ( | AB17: =AA16/AM16*100 -> 11.51929646 | AC17: ) | AD17: ( | AE17: =AD16/AM16*100 -> 38.6272447 | AF17: ) | AG17: ( | AH17: =AG16/AM16*100 -> 0.2187284976 | AI17: ) | AJ17: ( | AK17: =AJ16/AM16*100 -> 0.144201355 | AL17: ) | AM17: ( | AN17: =SUM(J17+S17+AE17+AH17+AK17) -> 100 | AO17: )
A18: 6 | C18: 68609 | F18: 55692 | I18: 124301 | L18: 84269 | O18: 160796 | R18: 245065 | U18: 150017 | X18: 11524 | AA18: 60312 | AD18: =SUM(U18:AC18) -> 221853 | AG18: 1304 | AJ18: 927 | AM18: =SUM(I18+R18+AD18+AG18+AJ18) -> 593450 | AP18: =AM18/AM16*100 -> 102.8561228
C19: ( | D19: =C18/AM18*100 -> 11.56104137 | E19: ) | F19: ( | G19: =F18/AM18*100 -> 9.384446878 | H19: ) | I19: ( | J19: =I18/AM18*100 -> 20.94548825 | K19: ) | L19: ( | M19: =L18/AM18*100 -> 14.19984834 | N19: ) | O19: ( | P19: =O18/AM18*100 -> 27.09512175 | Q19: ) | R19: ( | S19: =R18/AM18*100 -> 41.29497009 | T19: ) | U19: ( | V19: =U18/AM18*100 -> 25.2787935 | W19: ) | X19: ( | Y19: =X18/AM18*100 -> 1.941865364 | Z19: ) | AA19: ( | AB19: =AA18/AM18*100 -> 10.16294549 | AC19: ) | AD19: ( | AE19: =AD18/AM18*100 -> 37.38360435 | AF19: ) | AG19: ( | AH19: =AG18/AM18*100 -> 0.2197320752 | AI19: ) | AJ19: ( | AK19: =AJ18/AM18*100 -> 0.1562052405 | AL19: ) | AM19: ( | AN19: =SUM(J19+S19+AE19+AH19+AK19) -> 100 | AO19: )
A20: =A18&"/"&A8 -> 6/元 | C20: =C18/C8*100 -> 87.95349076 | F20: =F18/F8*100 -> 102.2828702 | I20: =I18/I8*100 -> 93.843947 | L20: =L18/L8*100 -> 105.2126252 | O20: =O18/O8*100 -> 101.1989351 | R20: =R18/R8*100 -> 102.5440927 | U20: =U18/U8*100 -> 85.11023363 | X20: =X18/X8*100 -> 89.20885586 | AA20: =AA18/AA8*100 -> 71.36416883 | AD20: =AD18/AD8*100 -> 81.05906983 | AG20: =AG18/AG8*100 -> 84.95114007 | AJ20: =AJ18/AJ8*100 -> 120.0777202 | AM20: =AM18/AM8*100 -> 91.66100334
A23: （注） | C23: １． 航空は「航空輸送統計年報」、その他は北海道運輸局資料による
C24: ２． ハイヤー・タクシーは個人タクシーを含む
C25: ３． 乗合バスには乗用車両を用いた乗合事業者を含む
C26: ４． （ ）内は、輸送機関別シェア
C27: ="５． "&A20&"は令和"&A8&"年度を１００と表している" -> ５． 6/元は令和元年度を１００と表している

Sheet 旅客１（２）
A2: （２） 道内－道外間機関別輸送人員の推移
P3: （単位：千人、％）
B4: 区分 | C4: Ｊ Ｒ | I4: 船 舶 | L4: 航 空 | O4: 合 計 | R4: 前年度対比
A5: 年度 | C5: 海峡線 | F5: 北海道新幹線
A6: 元 | C6: 0 | F6: 1507 | I6: 1853 | L6: 22015 | O6: 25375 | R6: 98.40992825
C7: （ | D7: =C6/O6*100 -> 0 | E7: ） | F7: （ | G7: =F6/O6*100 -> 5.938916256 | H7: ） | I7: （ | J7: =I6/O6*100 -> 7.302463054 | K7: ） | L7: （ | M7: =L6/O6*100 -> 86.75862069 | N7: ） | O7: （ | P7: =SUM(D7+G7+J7+M7) -> 100 | Q7: ）
A8: 2 | C8: 1 | F8: 531 | I8: 1018 | L8: 7169 | O8: 8719 | R8: 34.36059113
C9: （ | D9: =C8/O8*100 -> 0.01146920518 | E9: ） | F9: （ | G9: =F8/O8*100 -> 6.090147953 | H9: ） | I9: （ | J9: =I8/O8*100 -> 11.67565088 | K9: ） | L9: （ | M9: =L8/O8*100 -> 82.22273196 | N9: ） | O9: （ | P9: =SUM(D9+G9+J9+M9) -> 100 | Q9: ）
A10: 3 | C10: 1 | F10: 609 | I10: 1158 | L10: 10869 | O10: 12637 | R10: 144.9363459
C11: （ | D11: =C10/O10*100 -> 0.007913270555 | E11: ） | F11: （ | G11: =F10/O10*100 -> 4.819181768 | H11: ） | I11: （ | J11: =I10/O10*100 -> 9.163567302 | K11: ） | L11: （ | M11: =L10/O10*100 -> 86.00933766 | N11: ） | O11: （ | P11: =SUM(D11+G11+J11+M11) -> 100 | Q11: ）
A12: 4 | C12: 1 | F12: 1070 | I12: 1544 | L12: 20026 | O12: 22641 | R12: 179.1643586
C13: （ | D13: =C12/O12*100 -> 0.004416766044 | E13: ） | F13: （ | G13: =F12/O12*100 -> 4.725939667 | H13: ） | I13: （ | J13: =I12/O12*100 -> 6.819486772 | K13: ） | L13: （ | M13: =L12/O12*100 -> 88.4501568 | N13: ） | O13: （ | P13: =SUM(D13+G13+J13+M13) -> 100 | Q13: ）
A14: 5 | C14: 1 | F14: 1402 | I14: 1756 | L14: 23722 | O14: 26881 | R14: 118.727088
C15: （ | D15: =C14/O14*100 -> 0.003720099699 | E15: ） | F15: （ | G15: =F14/O14*100 -> 5.215579778 | H15: ） | I15: （ | J15: =I14/O14*100 -> 6.532495071 | K15: ） | L15: （ | M15: =L14/O14*100 -> 88.24820505 | N15: ） | O15: （ | P15: =SUM(D15+G15+J15+M15) -> 100 | Q15: ）
A16: 6 | C16: 1 | F16: 1607 | I16: 1809 | L16: 24900 | O16: =SUM(C16:M16) -> 28317 | R16: =O16/O14*100 -> 105.3420632
C17: （ | D17: =C16/O16*100 -> 0.00353144754 | E17: ） | F17: （ | G17: =F16/O16*100 -> 5.675036197 | H17: ） | I17: （ | J17: =I16/O16*100 -> 6.3883886 | K17: ） | L17: （ | M17: =L16/O16*100 -> 87.93304375 | N17: ） | O17: （ | P17: =SUM(D17+G17+J17+M17) -> 100 | Q17: ）
A18: =A16&"/"&A6 -> 6/元 | C18: - | F18: =F16/F6*100 -> 106.6357001 | I18: =I16/I6*100 -> 97.62547221 | L18: =L16/L6*100 -> 113.1047013 | O18: =O16/O6*100 -> 111.5940887
A21: （注） | B21: １． 「航空輸送統計年報」及び北海道運輸局資料による
B22: ２． （ ）内は輸送機関別シェア
B23: ３． 北海道新幹線は平成２８年３月２６日開業
B24: ="４． "&A18&"は令和"&A6&"年度を１００と表している" -> ４． 6/元は令和元年度を１００と表している

Sheet 旅客２
A1: ２．支局別旅客自動車運送事業者数及び車両数
P4: （令和7年3月31日現在）
A5: 事業種別 | F5: 乗合バス | H5: 貸切バス | J5: ハイヤー・タクシー | M5: 自家用 有償旅客運送
F6: 事業者数 | G6: 届出車両数 | H6: 事業者数 | I6: 届出車両数 | J6: 法人 | K6: 個人 | L6: 認可 ・ 届出車両数 | M6: 交通空白地 | O6: 福祉
A7: 支局別 | M7: 事業者数 | N7: 車両数 | O7: 事業者数 | P7: 車両数
A8: 札 幌 | F8: （４） | G8: 1923 | H8: （２２） | I8: 1693 | J8: （１０） | K8: 1125 | L8: 7574 | N8: 241 | P8: 603
F9: 34 | H9: 119 | J9: 531 | M9: 30 | O9: 125
A10: 函 館 | F10: （１） | G10: 298 | H10: （6） | I10: 173 | J10: -1 | K10: 68 | L10: 880 | N10: 46 | P10: 141
F11: 13 | H11: 10 | J11: 87 | M11: 8 | O11: 22
A12: 旭 川 | F12: （３） | G12: 619 | H12: （２） | I12: 248 | K12: 97 | L12: 1033 | N12: 183 | P12: 172
F13: 23 | H13: 21 | J13: 103 | M13: 30 | O13: 39
A14: 室 蘭 | F14: （１） | G14: 339 | I14: 266 | J14: -3 | K14: 16 | L14: 575 | N14: 59 | P14: 166
F15: 10 | H15: 19 | J15: 76 | M15: 12 | O15: 34
A16: 釧 路 | G16: 151 | I16: 84 | K16: 32 | L16: 508 | N16: 69 | P16: 123
F17: 6 | H17: 7 | J17: 43 | M17: 9 | O17: 19
A18: 帯 広 | G18: 231 | I18: 125 | J18: -1 | K18: 53 | L18: 495 | N18: 22 | P18: 149
F19: 10 | H19: 11 | J19: 45 | M19: 7 | O19: 28
A20: 北 見 | F20: （１） | G20: 199 | I20: 131 | K20: 16 | L20: 423 | N20: 46 | P20: 234
F21: 8 | H21: 15 | J21: 74 | M21: 10 | O21: 31
A22: 合 計 | G22: 3760 | I22: 2720 | K22: 1407 | L22: 11488 | N22: 666 | P22: 1588
F23: 104 | H23: 201 | J23: 959 | M23: 106 | O23: 298
A25: （注） | C25: １． 北海道運輸局資料による
C26: ２． （ ）内は他管内に本社のある事業者で外数
C27: ３． 乗合バスには乗用車両を用いた乗合事業者及び車両を含む
C28: ４． 公営事業者はなし

Sheet 旅客３
A1: ３．旅客自動車運送事業の推移
C3: 年度 | D3: 元 | E3: 2 | F3: 3 | G3: 4 | H3: 5 | I3: 6 | J3: =I3&"/"&D3 -> 6/元
A4: 区分
A5: 乗合バス | B5: 事業者数 | D5: 98 | E5: 98 | F5: 101 | G5: 102 | H5: 106 | I5: 104 | J5: =I5/D5*100 -> 106.122449
B7: 車両数 | D7: 4111 | E7: 3990 | F7: 3929 | G7: 3888 | H7: 3797 | I7: 3760 | J7: =I7/D7*100 -> 91.4619314
B9: 路線キロ | D9: 30681 | E9: 30568 | F9: 30916 | G9: 31141 | H9: 30584 | I9: 30173 | J9: =I9/D9*100 -> 98.34425214
B11: 走行キロ | D11: 178987 | E11: 150410 | F11: 147706 | G11: 145036 | H11: 151365 | I11: 139143 | J11: =I11/D11*100 -> 77.73916541
B12: （千キロ）
B13: 輸送人員 | D13: 176262 | E13: 125986 | F13: 128660 | G13: 144360 | H13: 145895 | I13: 150017 | J13: =I13/D13*100 -> 85.11023363
B14: （千人）
B15: 運転者数 | D15: 4910 | E15: 4885 | F15: 4703 | G15: 4398 | H15: 4248 | I15: 4313 | J15: =I15/D15*100 -> 87.84114053
A17: 貸切バス | B17: 事業者数 | D17: 226 | E17: 216 | F17: 209 | G17: 195 | H17: 190 | I17: 201 | J17: =I17/D17*100 -> 88.9380531
B19: 車両数 | D19: 2974 | E19: 2701 | F19: 2541 | G19: 2537 | H19: 2592 | I19: 2720 | J19: =I19/D19*100 -> 91.45931406
B21: 走行キロ | D21: 83379 | E21: 26854 | F21: 28445 | G21: 51510 | H21: 74129 | I21: 78110 | J21: =I21/D21*100 -> 93.680663
B22: （千キロ）
B23: 輸送人員 | D23: 12918 | E23: 5803 | F23: 5942 | G23: 8741 | H23: 10510 | I23: 11524 | J23: =I23/D23*100 -> 89.20885586
B24: （千人）
A25: ハイヤー・タクシー | B25: 事業者数 | D25: 967 | E25: 965 | F25: 951 | G25: 945 | H25: 951 | I25: 964 | J25: =I25/D25*100 -> 99.68976215
D26: 1683 | E26: 1646 | F26: 1597 | G26: 1507 | H26: 1439 | I26: 1407 | J26: =I26/D26*100 -> 83.60071301
B27: 車両数 | D27: 12625 | E27: 12290 | F27: 12157 | G27: 11946 | H27: 11383 | I27: 11488 | J27: =I27/D27*100 -> 90.99405941
B29: 走行キロ | D29: 517585 | E29: 368557 | F29: 351312 | G29: 387458 | H29: 381058.7 | I29: 360311 | J29: =I29/D29*100 -> 69.61387985
B30: （千キロ）
B31: 輸送人員 | D31: 84513 | E31: 55266 | F31: 54358 | G31: 66779 | H31: 66463 | I31: 60312 | J31: =I31/D31*100 -> 71.36416883
B32: （千人）
A33: 旅客運送 自家用有償 | B33: 交通空白地 | C33: 事業者数 | D33: 71 | E33: 76 | F33: 82 | G33: 87 | H33: 99 | I33: 106 | J33: =I33/D33*100 -> 149.2957746
C35: 車両数 | D35: 378 | E35: 401 | F35: 418 | G35: 442 | H35: 499 | I35: 666 | J35: =I35/D35*100 -> 176.1904762
B37: 福祉 | C37: 事業者数 | D37: 314 | E37: 313 | F37: 306 | G37: 311 | H37: 300 | I37: 298 | J37: =I37/D37*100 -> 94.9044586
C39: 車両数 | D39: 1816 | E39: 1738 | F39: 1684 | G39: 1675 | H39: 1639 | I39: 1588 | J39: =I39/D39*100 -> 87.44493392
A42: （注） | B42: １． 北海道運輸局資料による
B43: ２． ハイヤー・タクシー事業者数上段は法人事業者数、下段は個人タクシー事業者数
B44: ３． 乗合バスには乗用車両を用いた乗合事業者を含む
B45: ="４． "&I3&"／"&D3&"は令和"&D3&"年度を１００として表している" -> ４． 6／元は令和元年度を１００として表している

Sheet 旅客４
A1: ４．都市間バスの運行状況
A3: 都市間バスの運行系統（主なもの）
F4: （令和7年3月31日現在）
A5: 発 地 | B5: 着 地 | C5: 名 称 | D5: 運行系統 キロ | E5: 事 業 者 名 | F5: 備 考
A6: 札幌 | B6: 洞爺湖温泉 | C6: 札幌洞爺湖線 | D6: 108.3 | E6: 道南バス
A7: 札幌 | B7: 岩見沢 | C7: 高速いわみざわ号 | D7: 43.2 | E7: 北海道中央バス
A8: 札幌 | B8: 登別温泉 | C8: 高速おんせん号 | D8: 110.6 | E8: 道南バス
A9: 札幌 | B9: 室蘭 | C9: 高速むろらん号 高速白鳥号 | D9: 132.2 | E9: 北海道中央バス
E10: 道南バス
A11: 札幌 | B11: 室蘭 | C11: 高速蘭東ライナー号 | D11: 131.3 | E11: 道南バス
A13: 札幌 | B13: 留萌 | C13: 高速るもい号 | D13: 159.6 | E13: 北海道中央バス | F13: 深川経由便 滝川経由便
A14: 札幌 | B14: 留萌 | C14: 特急ましけ号 | D14: 133.9 | E14: 沿岸バス
A15: 札幌 | B15: 浦河 | C15: 高速ペガサス号 | D15: 171.5 | E15: 道南バス
A16: 札幌 | B16: 富良野 | C16: 高速ふらの号 | D16: 144.4 | E16: 北海道中央バス
A17: 札幌 | B17: 旭川 | C17: 高速あさひかわ号 | D17: 138.8 | E17: 北海道中央バス
E18: ＪＲ北海道バス
E19: 道北バス
A20: 札幌 | B20: 岩内 | C20: 高速いわない号 | D20: 97.5 | E20: 北海道中央バス
A21: 札幌 | B21: 滝川 | C21: 高速たきかわ号 | D21: 91.9 | E21: 北海道中央バス
A22: 札幌 | B22: 豊富 | C22: 特急はぼろ号 | D22: 301.4 | E22: 沿岸バス | F22: 増毛経由便 羽幌経由便
A23: 札幌 | B23: 稚内 | C23: わっかない号 | D23: 333.1 | E23: 宗谷バス
E24: 北都交通
A25: 札幌 | B25: 苫小牧 | C25: 高速とまこまい号 高速ハスカップ号 | D25: 69.9 | E25: 北海道中央バス
E26: 道南バス
A27: 札幌 | B27: 三笠 | C27: 高速みかさ号 | D27: 57 | E27: 北海道中央バス
A28: 札幌 | B28: ニセコ | C28: 高速ニセコ号 | D28: 121.8 | E28: 北海道中央バス
A29: 札幌 | B29: 余市 | C29: 高速よいち号 | D29: 61.1 | E29: 北海道中央バス
A30: 札幌 | B30: 美国 | C30: 高速しゃこたん号 | D30: 81.9 | E30: 北海道中央バス
A31: 札幌 | B31: 釧路 | C31: スターライト釧路号 | D31: 312.1 | E31: 北海道中央バス
E32: くしろバス
E33: 阿寒バス
A34: 札幌 | B34: 釧路 | C34: 釧路特急ニュースター号 | D34: 320.7 | E34: 北海道バス
A35: 札幌 | B35: 小樽 | C35: 高速おたる号 | D35: 37.2 | E35: 北海道中央バス | F35: 円山経由便 北大経由便 望洋台経由便
E36: JR北海道バス
A38: 札幌 | B38: 栗山 | C38: 高速くりやま号 | D38: 44.1 | E38: 北海道中央バス
A39: 札幌 | B39: 名寄 | C39: 高速なよろ号 | D39: 204.9 | E39: 北海道中央バス
E40: 道北バス
A41: 札幌 | B41: 帯広 | C41: 帯広特急ニュースター号 | D41: 210.8 | E41: 北海道バス
A42: 札幌 | B42: 帯広 | C42: ポテトライナー | D42: 210.2 | E42: 北海道中央バス | F42: 直行便 音更経由便 芽室経由便
E43: 北都交通
E44: ＪＲ北海道バス
E45: 十勝バス
E46: 拓殖バス
A47: 発地 | B47: 着地 | C47: 名 称 | D47: 運行系統 キロ | E47: 事 業 者 名 | F47: 備 考
A48: 札幌 | B48: 網走 | C48: ドリーミント オホーツク号 | D48: 348.3 | E48: 北海道中央バス
E49: 北見バス
E50: 網走バス
A51: 札幌 | B51: 北見 | C51: 北見特急ニュースター号 | D51: 319.6 | E51: 北海道バス
A52: 札幌 | B52: 根室 | C52: オーロラ号 | D52: 449.3 | E52: 北都交通 | F52: 直行便 中標津経由便
E53: 根室交通
A54: 札幌 | B54: 函館 | C54: 高速はこだて号 | D54: 321.3 | E54: 北都交通
E55: 北海道中央バス
E56: 函館バス
A57: 札幌 | B57: 函館 | C57: 函館特急ニュースター号 | D57: 338.5 | E57: 北海道バス
A59: 札幌 | B59: 遠軽 | C59: 高速えんがる号 | D59: 254.6 | E59: 北海道中央バス
E60: 北見バス
E61: 道北バス
A62: 札幌 | B62: 紋別 | C62: 流氷もんべつ号 | D62: 279.3 | E62: 北海道中央バス
E63: ＪＲ北海道バス
E64: 道北バス
E65: 北紋バス
A66: 札幌 | B66: えりも | C66: 高速えりも号 | D66: 215.2 | E66: ＪＲ北海道バス
A67: 苫小牧 | B67: えりも | C67: 特急とまも号 | D67: 167.8 | E67: ＪＲ北海道バス
A68: 札幌 | B68: 枝幸 | C68: 特急えさし号（札幌） | D68: 299.1 | E68: 宗谷バス
A69: 旭川 | B69: 鬼志別 | C69: 特急天北号 | D69: 223.8 | E69: 宗谷バス
A70: 札幌 | B70: 知床 | C70: イーグルライナー 札幌知床線 | D70: 415.1 | E70: 斜里バス
A71: 旭川 | B71: 紋別 | C71: 特急オホーツク号 | D71: 144.2 | E71: 道北バス
A72: 旭川 | B72: 枝幸 | C72: 特急えさし号（旭川） | D72: 172.6 | E72: 宗谷バス
A74: 旭川 | B74: 帯広 | C74: ノースライナー | D74: 181.4 | E74: 道北バス | F74: 狩勝峠経由便 三国峠経由便
E75: 拓殖バス
E76: 十勝バス
A77: 旭川 | B77: 釧路 | C77: サンライズ号 | D77: 316.8 | E77: 道北バス
E78: 北見バス
E79: 阿寒バス
A80: 旭川 | B80: 新千歳空港 | C80: たいせつライナー | D80: 173.2 | E80: 旭川電気軌道
E81: 北都交通
A82: 旭川 | B82: 羽幌 | C82: 特急あさひかわ号 | D82: 140.6 | E82: 沿岸バス
A83: 帯広 | B83: 新千歳空港 | C83: とかちミルキーライナー | D83: 174.3 | E83: 帯運観光
E84: 北都交通
A85: 釧路 | B85: 根室 | C85: 特急ねむろ号 | D85: 142.5 | E85: くしろバス
E86: 根室交通
A87: 室蘭 | B87: 新千歳空港 | C87: 高速はやぶさ号 | D87: 97.4 | E87: 道南バス
A88: 網走 | B88: 新千歳空港 | C88: 千歳オホーツクエクスプレス | D88: 358.3 | E88: 網走バス
A89: 登別温泉 | B89: 新千歳空港 | C89: 高速登別温泉エアポート号 | D89: 76.4 | E89: 道南バス
A90: （注） | B90: １． 北海道運輸局資料による
B91: ２． 経由地別の運行がある場合、備考に記載

Sheet 旅客５
A1: ５．主要交通圏別ハイヤー・タクシー事業者数及び車両数
J3: （令和7年3月31日現在）
B4: 区分 | C4: 事 業 者 数 | H4: 車 両 数
A5: 交通圏 | C5: 法 人 | E5: 個 人 | F5: 計 | H5: 法 人 （Ａ） | I5: 個 人 （Ｂ） | J5: 計 （Ｃ）
A6: 札幌交通圏 | C6: -5 | D6: 347 | E6: 1057 | F6: =C6 -> -5 | G6: =SUM(D6:E6) -> 1404 | H6: 4951 | I6: =E6 -> 1057 | J6: =SUM(H6:I6) -> 6008
A7: 小樽市 | D7: 39 | E7: 68 | G7: 107 | H7: 324 | I7: 68 | J7: 392
A8: 函館交通圏 | C8: -1 | D8: 61 | E8: 68 | F8: =C8 -> -1 | G8: 129 | H8: 710 | I8: 68 | J8: 778
A9: 旭川交通圏 （旭川市） | D9: 38 | E9: 97 | G9: 135 | H9: 568 | I9: 97 | J9: 665
A10: 室蘭市 | D10: 14 | E10: 6 | G10: 20 | H10: 207 | I10: 6 | J10: 213
A11: 苫小牧交通圏 | C11: -2 | D11: 28 | E11: 10 | F11: =C11 -> -2 | G11: 38 | H11: 193 | I11: 10 | J11: 203
A12: 釧路交通圏 | D12: 18 | E12: 32 | G12: 50 | H12: 359 | I12: 32 | J12: 391
A13: 帯広交通圏 | C13: -1 | D13: 26 | E13: 53 | F13: =C13 -> -1 | G13: 79 | H13: 368 | I13: 53 | J13: 421
A14: 北見交通圏 | D14: 29 | E14: 16 | G14: 45 | H14: 200 | I14: 16 | J14: 216
A15: 合 計 | D15: =SUM(D6:D14) -> 600 | E15: =SUM(E6:E14) -> 1407 | G15: 2007 | H15: =SUM(H6:H14) -> 7880 | I15: =SUM(I6:I14) -> 1407 | J15: =SUM(J6:J14) -> 9287
A17: （注） | B17: １．北海道運輸局資料による
B18: ２．札幌交通圏は、札幌市、江別市、石狩市（ただし、平成１７年１０月１日に編入 された旧厚田村及び旧浜益村の区域を除く）、北広島市
B19: ３．函館交通圏は、函館市（ただし、平成１６年１２月１日に編入された旧南茅部 町の区域を除く）、北斗市、七飯町
B20: ４．旭川交通圏は、旭川市、鷹栖町、当麻町、比布町（個人は、旭川市のみ）
B21: ５．苫小牧交通圏は、苫小牧市、白老町
B22: ６．釧路交通圏は、釧路市（ただし、平成１７年１０月１１日に新設された釧路市に おける旧釧路市の区域に限る）、釧路町
B23: ７．帯広交通圏は、帯広市、音更町、芽室町、幕別町（ただし、平成１８年２月６ 日に編入された旧忠類村の区域を除く）、中札内村、更別村、池田町
B24: ８．北見交通圏は、北見市（ただし、平成１８年３月５日に新設された北見市にお ける旧北見市及び旧端野町の区域に限る）
B25: ９．（ ）内は、他交通圏に本社のある事業者で外数

Sheet 旅客６（１）
A1: ６．札幌市における旅客輸送の状況
A3: （１） 機関別輸送人員の推移
A5: 区分 | C5: 市 電 | G5: 地 下 鉄 | K5: 乗合バス | O5: ハイヤー・タクシー | S5: 合 計 | W5: 前年度 対 比 (％)
C6: 走行距離 | D6: 輸送人員 | G6: 走行距離 | H6: 輸送人員 | K6: 走行距離 | L6: 輸送人員 | O6: 走行距離 | P6: 輸送人員 | S6: 走行距離 | T6: 輸送人員
A7: 年度 | C7: （千㎞） | D7: （千人） | G7: （千㎞） | H7: （千人） | K7: （千㎞） | L7: （千人） | O7: （千㎞） | P7: （千人） | S7: （千㎞） | T7: （千人）
A8: 元 | C8: 881 | D8: 8581 | G8: 32896 | H8: 224323 | K8: 48071 | L8: 108693 | O8: 281665 | P8: 48267 | S8: 271744 | T8: =SUM(D8+H8+L8+P8) -> 389864 | W8: 98.13478858
D9: （ | E9: =D8/T8*100 -> 2.201023947 | F9: ） | H9: （ | I9: =H8/T8*100 -> 57.53878276 | J9: ） | L9: （ | M9: =L8/T8*100 -> 27.87972216 | N9: ） | P9: （ | Q9: =P8/T8*100 -> 12.38047114 | R9: ） | T9: （ | U9: =T8/T8*100 -> 100 | V9: ）
A10: ２ | C10: 874 | D10: 6325 | G10: 33598 | H10: 162823 | K10: 38184 | L10: 77719 | O10: 199088 | P10: 29169 | S10: 273577 | T10: =SUM(D10+H10+L10+P10) -> 276036 | W10: 70.80315187
D11: （ | E11: =D10/T10*100 -> 2.291367793 | F11: ） | H11: （ | I11: =H10/T10*100 -> 58.98614673 | J11: ） | L11: （ | M11: =L10/T10*100 -> 28.15538553 | N11: ） | P11: （ | Q11: =P10/T10*100 -> 10.56709994 | R11: ） | T11: （ | U11: =T10/T10*100 -> 100 | V11: ）
A12: 3 | C12: 870 | D12: 6804 | G12: 33604 | H12: 174681 | K12: 46215 | L12: 81800 | O12: 192888 | P12: 30655 | S12: 278395 | T12: =SUM(D12+H12+L12+P12) -> 293940 | W12: 106.4861105
D13: （ | E13: =D12/T12*100 -> 2.314758114 | F13: ） | H13: （ | I13: =H12/T12*100 -> 59.42743417 | J13: ） | L13: （ | M13: =L12/T12*100 -> 27.8288086 | N13: ） | P13: （ | Q13: =P12/T12*100 -> 10.42899912 | R13: ） | T13: （ | U13: =T12/T12*100 -> 100 | V13: ）
A14: 4 | C14: 879 | D14: 7659 | G14: 33620 | H14: 210560 | K14: 34160 | L14: 89267 | O14: 209736 | P14: 37131 | S14: 278395 | T14: =SUM(D14+H14+L14+P14) -> 344617 | W14: 117.2405933
D15: （ | E15: =D14/T14*100 -> 2.222467261 | F15: ） | H15: （ | I15: =H14/T14*100 -> 61.0997136 | J15: ） | L15: （ | M15: =L14/T14*100 -> 25.90324911 | N15: ） | P15: （ | Q15: =P14/T14*100 -> 10.77457003 | R15: ） | T15: （ | U15: =T14/T14*100 -> 100 | V15: ）
A16: 5 | C16: 887 | D16: 8845 | G16: 33813 | H16: 218653 | K16: 37606 | L16: 106902 | O16: 207390 | P16: 37401 | S16: 279696 | T16: =SUM(D16+H16+L16+P16) -> 371801 | W16: 107.8881773
D17: （ | E17: =D16/T16*100 -> 2.378960788 | F17: ） | H17: （ | I17: =H16/T16*100 -> 58.8091479 | J17: ） | L17: （ | M17: =L16/T16*100 -> 28.7524778 | N17: ） | P17: （ | Q17: =P16/T16*100 -> 10.0594135 | R17: ） | T17: （ | U17: =T16/T16*100 -> 100 | V17: ）
A18: 6 | C18: 864 | D18: 9143 | G18: 33766 | H18: 229874 | K18: 33585 | L18: 104067 | O18: 203942 | P18: 34955 | S18: =SUM(C18+G18+K18+O18) -> 272157 | T18: =SUM(D18+H18+L18+P18) -> 378039 | W18: =T18/T16*100 -> 101.6777792
D19: （ | E19: =D18/T18*100 -> 2.418533538 | F19: ） | H19: （ | I19: =H18/T18*100 -> 60.80695378 | J19: ） | L19: （ | M19: =L18/T18*100 -> 27.52811218 | N19: ） | P19: （ | Q19: =P18/T18*100 -> 9.246400504 | R19: ） | T19: （ | U19: =T18/T18*100 -> 100 | V19: ）
A20: =A18&"/"&A8 -> 6/元 | C20: =C18/C8*100 -> 98.07037457 | D20: =D18/D8*100 -> 106.5493532 | G20: =G18/G8*100 -> 102.6446984 | H20: =H18/H8*100 -> 102.4745568 | I20: =I16/#REF!*100 ->  | J20: =J16/#REF!*100 ->  | K20: =K18/K8*100 -> 69.86540742 | L20: =L18/L8*100 -> 95.74397615 | M20: =M16/#REF!*100 ->  | N20: =N16/#REF!*100 ->  | O20: =O18/O8*100 -> 72.40587222 | P20: =P18/P8*100 -> 72.42007997 | Q20: =Q16/#REF!*100 ->  | R20: =R16/#REF!*100 ->  | S20: =S18/S8*100 -> 100.1519813 | T20: =T18/T8*100 -> 96.96689102 | U20: =U14/#REF!*100 ->  | V20: =V14/#REF!*100 -> 
A23: （注） | C23: １． 北海道運輸局資料による
C24: ２． 市電・地下鉄の走行距離は車両キロを使用
C25: ３． 乗合バスについては、札幌市を起終点とした通勤圏内（小樽市、岩見沢市、千歳市を円で結ぶ 圏内）の運行系統
C26: なお、定期観光バスは除く
C27: ４． ハイヤー・タクシーについては、札幌交通圏（札幌市、江別市、石狩市、北広島市）の数値
C28: ５． （ ）内は輸送機関別シェア
C29: ="６． "&A20&"は令和"&A8&"年度を１００として表している" -> ６． 6/元は令和元年度を１００として表している

Sheet 旅客６（２）
A3: （２） 地下鉄の概要
AJ4: （令和7年3月31日現在）
F5: 区分 | G5: 南 北 線 | Q5: 東 西 線 | AA5: 東 豊 線
A6: 項目
A7: 方 式 | G7: 案内軌条式（ゴムタイヤ使用） | Q7: 同 左 | AA7: 同 左
A8: 起 点 | G8: 麻 生 | Q8: 宮 の 沢 | AA8: 栄 町
A9: 主 な 経 過 地 | G9: 北３４条、北２４条、さっぽろ駅、 | Q9: 琴似、円山公園、大通、 | AA9: 新道東、元町、東区役所前、
G10: 大通、すすきの、中島公園、 | Q10: 東札幌、白石、大谷地 | AA10: 北１３条東、大通、学園前、
G11: 平岸、澄川 | AA11: 美園
A12: 終 点 | G12: 真 駒 内 | Q12: 新さっぽろ | AA12: 福 住
A13: 構造 | C13: 地下部 | G13: 麻生～平岸 | Q13: 宮の沢～新さっぽろ | AA13: 栄町～福住
C14: 高架部 | G14: 平岸～真駒内 | Q14: な し | AA14: な し
A15: キ ロ 程 | G15: １４．３㎞ | Q15: ２０．１㎞ | AA15: １３．６㎞
A16: 駅 数 | G16: １６駅 | Q16: １９駅 | AA16: １４駅
A17: 信号保安設備 | G17: ○自動列車制御装置（ＡＴＣ） | Q17: ○自動列車制御装置（ＡＴＣ） | AA17: ○自動列車制御装置（ＡＴＣ）
A18: 建 設 費 | G18: ８２２億円 | Q18: ２，８９４億円 | AA18: ３，３０２億円
A19: 車 両 | G19: １２０両 | Q19: １６８両 | AA19: ８０両
A21: （注） | D21: １． 北海道運輸局資料による
A23: （３） 札幌市内パークアンドライド駐車場
AJ24: （令和３年１０月現在）
A25: Ｊ Ｒ | J25: 南 北 線 | S25: 東 西 線 | AB25: 東 豊 線
A26: 駅 名 | F26: 収容台数 | J26: 駅 名 | O26: 収容台数 | S26: 駅 名 | X26: 収容台数 | AB26: 駅 名 | AG26: 収容台数
A27: 新 川 | F27: 72 | I27: 台 | J27: 麻 生 | O27: 41 | R27: 台 | S27: 宮の沢 | X27: 441 | AA27: 台 | AB27: 北１３条東 | AG27: 13 | AJ27: 台
A28: 新琴似 | F28: 90 | I28: 台 | J28: 南平岸 | O28: 11 | R28: 台 | S28: 琴 似 | X28: 67 | AA28: 台 | AB28: 東区役所前 | AG28: 13 | AJ28: 台
J29: 澄 川 | O29: 197 | R29: 台 | S29: 二十四軒 | X29: 258 | AA29: 台
J30: 自衛隊前 | O30: 128 | R30: 台 | S30: 大谷地 | X30: 424 | AA30: 台
J31: 真駒内 | O31: 150 | R31: 台 | S31: 新札幌 | X31: 427 | AA31: 台
X32: 合 計 | AB32: ２６カ所 | AG32: =F27+F28+O27+O28+O29+O30+O31+X27+X28+X29+X30+X31+AG27+AG28 -> 2332 | AJ32: 台
A33: （注） | D33: 札幌市資料による

Sheet 旅客７
A1: ７．バス専用、優先レーン等の設置状況
AC2: （令和7年3月31日現在）
A3: 区分 | K3: バス専用通行帯 | P3: バス優先通行帯 | U3: バス等専用道路 | Z3: 計
A4: 都市別 | K4: 区 間 | M4: 距離（ｍ） | P4: 区 間 | R4: 距離（ｍ） | U4: 区 間 | W4: 距離（ｍ） | Z4: 区 間 | AB4: 距 離 （ｍ）
A5: 札 幌 市 | K5: 16 | M5: 53225 | P5: 12 | R5: 30930 | Z5: =SUM(K5+P5+T5) -> 28 | AB5: =SUM(M5+R5+W5) -> 84155
A6: 函 館 市 ・ 北 斗 市 | K6: 2 | M6: 1400 | P6: 2 | R6: 5200 | Z6: =SUM(K6+P6+T6) -> 4 | AB6: =SUM(M6+R6+W6) -> 6600
A7: 旭 川 市 | K7: 1 | M7: 1300 | P7: 1 | R7: 1300 | Z7: =SUM(K7+P7+T7) -> 2 | AB7: =SUM(M7+R7+W7) -> 2600
A8: 計 | K8: =SUM(K5:L7) -> 19 | M8: =SUM(M5:O7) -> 55925 | P8: =SUM(P5:P7) -> 15 | R8: =SUM(R5:T7) -> 37430 | Z8: =SUM(Z5:AA7) -> 34 | AB8: =SUM(AB5:AD7) -> 93355
A10: 【バス専用・優先通行帯】
C11: 路 線 | J11: 区 間 距 離 （ｍ） | V11: 規 制 時 間 | Z11: 指 定 車 | AC11: 実施年月日
A13: 札 幌 市 | B13: 専 用 | C13: １ | E13: 国道５号 | J13: １ | K13: 手稲区手稲本町２条２丁目 ～中央区北１条西２５丁目 | R13: 都心流入 | T13: 9180 | V13: ７：３０～９：００ | Z13: バス・自二輪 実車のハイタク | AC13: ５５．１０． ６ ［変更］ １．１１．１５
E14: 道道宮の沢北１条線 | R14: １車線 | V14: （日、休日除く）
C15: ２ | E15: 国道１２号 | J15: ２ | K15: 厚別区厚別中央２条２丁目 ～中央区北１条西２丁目 | R15: 都心流入 | T15: 10120 | V15: ７：３０～９：００ | Z15: バス・自二輪 実車のハイタク | AC15: ５０． ９． １ ［変更］ １．１１．１５ ６． ８．２４
R16: １車線 | V16: （土、日、休日除く）
C17: ３ | E17: 国道３６号 | J17: ３ | K17: 清田区真栄１条１丁目 ～豊平区月寒中央通１１丁目 | R17: 都心流入 | T17: 4600 | V17: ７：３０～９：００ | Z17: バス・自二輪 実車のハイタク | AC17: ５３．１１．２４ ［変更］ ６． ９．２８
R18: １車線 | V18: （土、日、休日除く）
J19: ４ | K19: 豊平区月寒中央通１０丁目 ～中央区南４条西２丁目 | R19: 都心流入 | T19: 5710 | V19: ７：３０～９：００ | Z19: バス・自二輪 | AC19: ５２． ５． ２ ［変更］ ５３．１１．２４ ７．１１．２９
R20: １車線 | V20: （土、日、休日除く）
C21: ４ | E21: 国道２３０号 | J21: ５ | K21: 中央区南３０条西１１丁目 ～中央区大通西１１丁目 | R21: 都心流入 | T21: 4500 | V21: ７：３０～９：００ | Z21: バス・自二輪 実車のハイタク | AC21: ５２． ５． ２ ［変更］ ５８． ９． ２ ６． ５．２５
R22: １車線 | V22: （土、日、休日除く）
C23: ５ | E23: 国道２３１号 | J23: ６ | K23: 北区篠路２条１丁目 ～東区北４９条東２丁目 | R23: 都心流入 | T23: 2900 | V23: ７：３０～９：００ | Z23: バス・自二輪 | AC23: ６． ８．２４
R24: １車線 | V24: （土、日、休日除く）
C25: ６ | E25: 国道５号 | J25: ７ | K25: 東区北１１条東１丁目 ～中央区北１条東１丁目 | R25: 都心流入 | T25: 1490 | V25: ７：３０～９：００ | Z25: バス・自二輪 | AC25: ５０． ９． １ ［変更］ ５８． ４．２７ ６．１１． ２
R26: １車線 | V26: （土、日、休日除く）
C27: ７ | E27: 道道西野白石線 | J27: ８ | K27: 西区西野２条２丁目 ～中央区北５条西２９丁目 | R27: 都心流入 | T27: 2880 | V27: ７：３０～９：００ | Z27: バス・自二輪 実車のハイタク | AC27: ５２． ５． ２ ［変更］ 平１．１１．１５ 令６． ７．２９
R28: １車線 | V28: （土、日、休日除く）
C29: ８ | E29: 道道樽川篠路線 | J29: ９ | K29: 北区新琴似８条１６丁目 ～北区麻生町５丁目 | R29: 都心流入 | T29: 3150 | V29: ７：３０～９：００ | Z29: バス・自二輪 実車のハイタク | AC29: ５５．１０． ６ ［変更］ ６０． ６． ５ ６． ８．２４
E30: 市道手稲新琴似線 | R30: １車線 | V30: （土、日、休日除く）
C31: ９ | E31: 道道札幌環状線 | J31: １０ | K31: 北区北２３条西１４丁目 ～北区北２４条西６丁目 | R31: 都心流入 | T31: 1200 | V31: ７：３０～９：００ | Z31: バス・自二輪 実車のハイタク | AC31: ５６．１０．１９
R32: １車線 | V32: （日、休日除く）
C33: １０ | E33: 市道新川線 | J33: １１ | K33: 北区北２４条西１９丁目 ～北区北２３条西１４丁目 | R33: 都心流入 | T33: 800 | V33: ７：３０～９：００ | Z33: バス・自二輪 実車のハイタク | AC33: ５６．１０．１９
R34: １車線 | V34: （日、休日除く）
C35: １１ | E35: 市道西２丁目線 | J35: １２ | K35: 中央区北４条西１丁目 ～中央区南４条西１丁目 | R35: 南方向 | T35: 1140 | V35: ７：３０～９：３０ | Z35: バス・自二輪 実車のハイタク | AC35: ４８．１０． １ ［変更］ １． ４．１９
R36: １～２ | V36: １６：３０～１８：３０
R37: 車線 | V37: （日、休日除く）
C38: １２ | E38: 市道西３丁目線 | J38: １３ | K38: 中央区南４条西３丁目 ～中央区北３条西３丁目 | R38: 北方向 | T38: 940 | V38: ７：３０～９：３０ | Z38: バス・自二輪 実車のハイタク | AC38: ４８．１０． １ ［変更］ 平１. ５．２４ 令５． ７．２０
R39: １～２ | V39: １６：３０～１８：３０
R40: 車線 | V40: （日、休日除く）
C41: １３ | E41: 市道苗穂三角街道線 | J41: １４ | K41: 東区東苗穂５条３丁目 ～東区東苗穂１条３丁目 | R41: 都心流入 | T41: 1900 | V41: ７：３０～９：００ | Z41: バス・自二輪 実車のハイタク | AC41: ６． ８．２４
R42: １車線 | V42: （土、日、休日除く）
C43: １４ | E43: 市道福住中央線 | J43: １５ | K43: 豊平区福住２条１丁目１ ～豊平区福住２条１丁目２ | R43: 南方向 １車線 | T43: 130 | V43: ７：００～９：００ | Z43: バス・自二輪 | AC43: ６． ９．２８
V44: １６：００～１９：００
V45: （土、日、休日除く）
C46: １５ | E46: 国道２３０号 | J46: １６ | K46: 中央区北１条西２４丁目243-1 ～中央区北１条西４丁目2-2 | R46: 東進 | T46: 2585 | V46: ７：３０～９：００ | Z46: バス・自二輪 実車のハイタク | AC46: １０．１０． ７ ［変更］ １８． １．１８
E47: 道道宮の沢北１条線 | R47: １車線 | V47: （日、休日除く）
C48: 計 | K48: １５路線 １６区間 | T48: =SUM(T13:U47) -> 53225
C51: 路 線 | J51: 区 間 距 離 （ｍ） | V51: 規 制 時 間 | Z51: 指 定 車 | AC51: 実施年月日
A53: 札 幌 市 | B53: 優 先 | C53: １６ | E53: 国道１２号 | J53: １７ | K53: 厚別区厚別東４条４丁目 ～厚別区厚別中央２条２丁目 | R53: 都心流入 | T53: 3000 | V53: ７：３０～９：００ | Z53: バス | AC53: ６． ８．２４
R54: １車線 | V54: （土、日、休日除く）
C55: １７ | E55: 国道３６号 | J55: １８ | K55: 清田区美しが丘１条９丁目 ～清田区真栄１条２丁目 | R55: 都心流入 | T55: 3000 | V55: ７：３０～９：００ | Z55: バス | AC55: ６． ９．２８
R56: １車線 | V56: （土、日、休日除く）
C57: １８ | E57: 国道２３１号 | J57: １９ | K57: 北区篠路１０条１丁目 ～北区篠路２条１丁目 | R57: 都心流入 | T57: 1400 | V57: ７：３０～９：００ | Z57: バス | AC57: ６． ８．２４
R58: １車線 | V58: （土、日、休日除く）
C59: １９ | E59: 道道樽川篠路線 | J59: ２０ | K59: 石狩市花川南８条３丁目 ～北区新琴似８条１６丁目 | R59: 都心流入 | T59: 2200 | V59: ７：３０～９：００ | Z59: バス | AC59: ６． ８．２４
R60: １車線 | V60: （土、日、休日除く）
C61: ２０ | E61: 道道真駒内御料 | J61: ２１ | K61: 清田区平岡９条１丁目 ～清田区平岡１条１丁目 | R61: 南方向 | T61: 2650 | V61: ７：３０～９：００ | Z61: バス | AC61: ６． ９．２８
E62: 札幌線 | R62: １車線 | V62: （土、日、休日除く）
J63: ２２ | K63: 清田区清田１条４丁目 ～清田区北野７条５丁目 | R63: 北方向 | T63: 2650 | V63: ７：３０～９：００ | Z63: バス | AC63: ６． ９．２８
R64: １車線 | V64: （土、日、休日除く）
C65: ２１ | E65: 道道札幌環状線 | J65: ２３ | K65: 東区本町２条９丁目 ～東区北１４条東１５丁目 | R65: 南方向 | T65: 2100 | V65: ７：３０～９：００ | Z65: バス | AC65: ６． ９．２８
R66: １車線 | V66: （土、日、休日除く）
C67: ２２ | E67: 道道札幌環状線 | J67: ２４ | K67: 北区篠路７条５丁目 ～中央区北３条東７丁目 | R67: 都心流入 | T67: 9500 | V67: ７：３０～９：００ | Z67: バス | AC67: ５０． ９． １ ［変更］ ６． ８．２４
E68: 市道真駒内篠路線 | R68: １車線 | V68: （土、日、休日除く）
C69: ２３ | E69: 市道苗穂三角街道線 | J69: ２５ | K69: 東区東苗穂８条３丁目 ～東区東苗穂６条３丁目 | R69: 都心流入 | T69: 1000 | V69: ７：３０～９：００ | Z69: バス | AC69: ６． ８．２４
R70: １車線 | V70: （土、日、休日除く）
C71: ２４ | E71: 市道福住中央線 | J71: ２６ | K71: 豊平区福住１条１丁目５ ～豊平区福住１条１丁目３ | R71: 北方向 １車線 | T71: 130 | V71: ７：００～９：００ | Z71: バス | AC71: ６． ９．２８
V72: １６：００～１９：００
V73: （土、日、休日除く）
C74: ２５ | E74: 市道北３条線 | J74: ２７ | K74: 中央区北２条東１３丁目 ～中央区北２条東３丁目 | R74: 都心流入 | T74: 1500 | V74: ７：３０～９：００ | Z74: バス | AC74: ５０． ９． １ ［変更］ 令６． ５．２８
R75: １車線 | V75: （日、休日除く）
C76: ２６ | E76: 市道北５条線 | J76: ２８ | K76: 中央区北５条西２０丁目 ～中央区北５条西５丁目 | R76: 都心流入 | T76: 1800 | V76: ７：３０～９：００ | Z76: バス | AC76: ５２． ５． ２ ［変更］ ６３． ４．２７
R77: １車線 | V77: （日、休日除く）
C78: 計 | K78: １１路線 １２区間 | T78: =SUM(T53:U77) -> 30930
B80: 小 計 | K80: ２６路線 ２８区間 | T80: =SUM(T78+T48) -> 84155
A82: 函館市・北斗市 | B82: 専用 | C82: ２７ | E82: 国道２７８号 | J82: ２９ ３０ | K82: 函館市松風町１２番 ～函館市大森町３３番 の両方向 | R82: 上下とも １車線 | T82: 700 | V82: ７：３０～９：００ | Z82: 路線バス 通学通園バス 二輪 | AC82: ５２．１１． １ ［変更］ 令４．１１．３０
V83: １７：００～１８：３０
T84: 700 | V84: （日、休日除く）
B85: 優先 | C85: ２８ | E85: 国道５号 | J85: ３１ | K85: 函館市亀田本町５５番８号 ～函館市万代町８番１０号 | R85: 都心流入 | T85: 1500 | V85: ７：３０～９：００ | Z85: バス・二輪 軽車両 | AC85: ５６．１２． ９
R86: １車線 | V86: （日、休日除く）
C87: ２９ | E87: 国道２２７号 | J87: ３２ | K87: 北斗市七重浜２丁目 ～函館市吉川町５番１１号 | R87: 都心流入 | T87: 3700 | V87: ７：３０～９：００ | Z87: バス・二輪 軽車両 | AC87: ５１． ９． １
R88: １車線 | V88: （日、休日除く）
B89: 小 計 | K89: ３路線 ４区間 | T89: =SUM(T82:U88) -> 6600
A91: 旭川市 | B91: 専用 | C91: ３０ | E91: 国道３９号 | J91: ３３ | K91: ４条通１９丁目～４条通９丁目 | R91: 南側 | T91: 1300 | V91: ７：３０～９：００ | Z91: バス・二輪 軽車両 | AC91: ５３． ７．１９
R92: １車線 | V92: （日、休日除く）
B93: 優先 | C93: ３１ | E93: 市道４条通線 | J93: ３４ | K93: 豊岡４条２丁目～４条通１９丁目 | R93: 都心流入 | T93: 1300 | V93: ７：３０～９：００ | Z93: バス・二輪 軽車両 | AC93: ５３． ５． ４
R94: １車線 | V94: （日、休日除く）
B95: 小 計 | K95: ２路線 ２区間 | T95: =SUM(T91:U94) -> 2600
A97: 合 計 | K97: ３１路線 ３４区間 | T97: =SUM(T95+T89+T80) -> 93355

Sheet 旅客８
A1: ８．支局別乗合バス路線キロの推移
Y4: （単位 ： ㎞）
B5: 項 目 | C5: 札 幌 | F5: 函 館 | I5: 旭 川 | L5: 室 蘭 | O5: 釧 路 | R5: 帯 広 | U5: 北 見 | X5: 合 計
A6: 年 度 | C6: 認可 | D6: 廃止 | E6: 路線 | F6: 認可 | G6: 廃止 | H6: 路線 | I6: 認可 | J6: 廃止 | K6: 路線 | L6: 認可 | M6: 廃止 | N6: 路線 | O6: 認可 | P6: 廃止 | Q6: 路線 | R6: 認可 | S6: 廃止 | T6: 路線 | U6: 認可 | V6: 廃止 | W6: 路線 | X6: 認可 | Y6: 廃止 | Z6: 路線
C7: キロ | D7: キロ | E7: キロ | F7: キロ | G7: キロ | H7: キロ | I7: キロ | J7: キロ | K7: キロ | L7: キロ | M7: キロ | N7: キロ | O7: キロ | P7: キロ | Q7: キロ | R7: キロ | S7: キロ | T7: キロ | U7: キロ | V7: キロ | W7: キロ | X7: キロ | Y7: キロ | Z7: キロ
A8: 元 | C8: 69.16 | D8: 195.19 | E8: 10308.45 | F8: 118.22 | G8: 35.75 | H8: 2497.94 | I8: 53.54 | J8: 128.4 | K8: 5288.87 | L8: 5.01 | M8: 0.83 | N8: 2014.42 | O8: 10.48 | P8: 51.21 | Q8: 4504.7 | R8: 116.8 | S8: 9.38 | T8: 2892.69 | U8: 298.83 | V8: 4.35 | W8: 3174.24 | X8: 672.04 | Y8: 425.11 | Z8: 30681.31
A9: 2 | C9: 147.27 | D9: 47.1 | E9: 10408.62 | F9: 298.03 | G9: 29.85 | H9: 2766.12 | I9: 55.68 | J9: 593.8 | K9: 4750.75 | L9: 23.99 | M9: 27.7 | N9: 2010.71 | O9: 214.31 | P9: 245.91 | Q9: 4473.1 | R9: 100.85 | S9: 9.5 | T9: 2984.04 | U9: 0 | V9: 0 | W9: 3174.24 | X9: 840.13 | Y9: 953.86 | Z9: 30567.58
A10: 3 | C10: 17 | D10: 79 | E10: 10346.62 | F10: 72 | G10: 59 | H10: 2779.12 | I10: 19 | J10: 61 | K10: 4708.75 | L10: 104 | M10: 43 | N10: 2071.71 | O10: 5 | P10: 23 | Q10: 4455.1 | R10: 94 | S10: 6 | T10: 3072.04 | U10: 308 | V10: 0 | W10: 3482.24 | X10: 619 | Y10: 271 | Z10: 30915.58
A11: 4 | C11: 94.99 | D11: 25.42 | E11: 10416.19 | F11: 20.54 | G11: 74.08 | H11: 2725.58 | I11: 18.57 | J11: 9.61 | K11: 4717.71 | L11: 137.97 | M11: 36.9 | N11: 2172.78 | O11: 5.44 | P11: 3.69 | Q11: 4456.85 | R11: 0.58 | S11: 0.3 | T11: 3072.32 | U11: 107.28 | V11: 9.74 | W11: 3579.78 | X11: 385.37 | Y11: 159.74 | Z11: 31141.21
A12: 5 | C12: 47 | D12: 387 | E12: 10076.19 | F12: 34 | G12: 200 | H12: 2559.58 | I12: 73 | J12: 49 | K12: 4741.71 | L12: 3 | M12: 10 | N12: 2165.78 | O12: 40 | P12: 10 | Q12: 4486.85 | R12: 9 | S12: 96 | T12: 2985.32 | U12: 11 | V12: 22 | W12: 3568.78 | X12: 217 | Y12: 774 | Z12: 30584
A13: 6 | C13: 26.346 | D13: 207.986 | E13: =E12+C13-D13 -> 9894.55 | F13: 30.83 | G13: 36.106 | H13: =H12+F13-G13 -> 2554.304 | I13: 32.17 | J13: 16.512 | K13: =K12+I13-J13 -> 4757.368 | L13: 8.226 | M13: 100.477 | N13: =N12+L13-M13 -> 2073.529 | O13: 34.14 | P13: 175.741 | Q13: =Q12+O13-P13 -> 4345.249 | R13: 0 | S13: 54.486 | T13: =T12+R13-S13 -> 2930.834 | U13: 65.904 | V13: 17.84 | W13: =W12+U13-V13 -> 3616.844 | X13: =SUM(C13,F13,I13,L13,O13,R13,U13) -> 197.616 | Y13: =SUM(D13,G13,J13,M13,P13,S13,V13) -> 609.148 | Z13: =SUM(E13,H13,K13,N13,Q13,T13,W13) -> 30172.678
A14: =A13&"/"&A8 -> 6/元 | C14: =C13/C8*100 -> 38.09427415 | D14: 106.5556637 | E14: 95.98484738 | F14: 26.07849772 | G14: 100.9958042 | H14: 102.2564193 | I14: 60.08591707 | J14: 12.85981308 | K14: 89.95055655 | L14: 164.1916168 | M14: 12105.66265 | N14: 102.9342937 | O14: 325.7633588 | P14: 343.1771138 | Q14: 96.46034142 | R14: 0 | S14: 580.8742004 | T14: 101.3186342 | U14: 22.05401064 | V14: 410.1149425 | W14: 113.9436212 | X14: 29.40539254 | Y14: 143.2918539 | Z14: 98.34220899
A17: （注） | C17: １． 北海道運輸局資料による
C18: ２． 路線キロは各年３月３１日現在
C19: ３． 合計欄は四捨五入のため、内訳と必ずしも一致しない
C20: ="４． "&A13&"/"&A8&"は令和"&A8&"年度を１００として表している" -> ４． 6/元は令和元年度を１００として表している

Sheet 旅客９（１）
A1: ９．地方バス路線維持費補助制度
A3: （１）生活交通路線維持に係る補助
B4: 存続が危機に瀕している生活交通のネットワークについて、地域のニーズを踏まえた最適な交通手段であるバス交通、デマンド交通の確保維持のため、地域の多様な関係者による議論を経た地域の交通に関する計画等に基づき実施される取組みを支援
B6: ○ | C6: 地域間幹線系統（複数市町村にまたがり、１日の輸送量が１５～１５０人、１日の運行回数が３回以上、広域行政圏の中心都市等にアクセスする広域的・幹線的な系統）に係る補助
B7: ○ | C7: 地域内フィーダー系統（地域間幹線又は地域間交通ネットワークと接続する系統）に係る補助
B8: ○ | C8: 国は乗合バス事業者及び自家用有償旅客運送者に対して補助対象経費の１／２を補助
AF10: （令和7年3月31日現在）
A11: 区 分 | E11: 補助対象事 | H11: 補助対象経費 | T11: 備 考
E12: 業者の要件
A13: 地域間幹線系統確保維持費補助 | E13: 乗合バス 事業者 | H13: 補助対象経常費用と経常収益の差額（補助対象路線ごと）ただし、補助対象経常費用の９／２０を限度
A14: 地域内フィーダー系統確保維持費補助 | E14: 乗合バス 事業者 及び 自家用 有償旅客 運送者 | H14: 補助対象経常費用と経常収益の差額（補助対象路線ごと）
A15: 車両減価償却費 等補助 | H15: 補助対象期間中に新たに購入等を行い、主として生活交通路線の運行の用に供する車両購入に係る減価償却費及び当該購入に係る金融費用（年2.5％を上限）に相当する額 | T15: 〔車両の種別〕 ・地上から車両の床面までの地上高が６５㎝以下の車両（「都市間連絡用車両」は除く） ・ノンステップ型車両は、原則として、標準仕様ノンステップバス認定要領(平成22年6月4日付け国自技第49号)に基づく認定を受けた車両に限る ・定員11人以上の車両
H17: ﾜﾝｽﾃｯﾌﾟ型 | K17: （1両当たりの補助限度額：1,300万円） （スロープもしくはリフト付き）
H18: ﾉﾝｽﾃｯﾌﾟ型 | K18: （1両当たりの補助限度額：1,500万円） （スロープもしくはリフト付き）
H19: 小型車両 | K19: （1両当たりの補助限度額：1,200万円） （上記類型に属さない、長さ７ｍ以下 かつ定員２９人以下の車両）
H20: 都市間連絡用車両 | K20: （1両当たりの補助限度額：1,500万円） （運行区間の一部に高速道路等を含む補助対象系統の運行の用に供するものであって、保安基準に適合した車両）
A22: （注） | C22: １． | D22: 地域間幹線系統確保維持費補助における「補助対象経常費用」とは、地域キロ当たり標準経常費用と乗合バス事業者キロ当たり経常費用と比較し、いずれか少ない方の額に、補助対象系統の計画実車走行キロ数を乗じて得た額
C23: ２． | D23: 地域内フィーダー系統確保維持費補助における「補助対象経常費用」とは、路線を定める系統にあっては、地域キロ当たり標準経常費用と補助対象事業者キロ当たり経常費用と比較し、いずれか少ない方の額に、補助対象系統の実車走行キロ数を乗じて得た額、路線を定めるもの以外の系統にあっては、地域時間当たり標準経常費用と補助対象事業者時間当たり経常費用と比較し、いずれか少ない方の額に、補助対象系統のサービス提供時間を乗じて得た額
C24: ３． | D24: 地域間交通ネットワークとは、地域間幹線バス系統、鉄軌道路線、内航旅客船航路及び国内定期航空路
C25: ４． | D25: 車両減価償却費等補助は、上記限度額に満たない場合、限度額は実費購入予定費（消費税を除く）から備忘価額として１円を控除した額

Sheet 旅客９（２）
A2: （２）地方バス路線等に対する補助金交付状況
I3: （単位：千円） | M3: 減価償却
A4: 項 目 | D4: 元 | E4: ２ | F4: 3 | G4: 4 | H4: 5 | I4: 6 | N4: 事業者数 | O4: 車両数 | P4: 金額
A5: 車両減価 償却費等 （国庫）補助金 | C5: 国 | D5: 18社49両 | E5: 19社45両 | F5: 5社25両 | G5: 25社48両 | H5: 25社47両 | I5: =N7&"社"&O7&"両" -> 25社42両 | M5: フィーダー | N5: 20 | O5: 25 | P5: 11979
D6: 54682 | E6: 54318 | F6: 34183 | G6: 41352 | H6: 35740 | I6: =P7 -> 28306 | M6: 幹線 | N6: 5 | O6: 17 | P6: 16327
C7: 道 | D7: 2社5両 | E7: 3社5両 | F7: 4社5両 | G7: 4社5両 | H7: 3社5両 | I7: 3社5両 | M7: 計 | N7: =N5+N6 -> 25 | O7: =O5+O6 -> 42 | P7: =P5+P6 -> 28306
D8: 7423 | E8: 5927 | F8: 8005 | G8: 7806 | H8: 5171 | I8: 5977
A9: 地域間幹線系統確保維持費（国庫）補助金 | C9: 国 | D9: 25社160系統 | E9: 23社147系統 | F9: 23社144系統 | G9: 24社143系統 | H9: 24社144系統 | I9: 24社144系統
D10: 1254635 | E10: 1297669 | F10: 1392577 | G10: 1279583 | H10: 1079017 | I10: 1116984
C11: 道 | D11: 25社160系統 | E11: 23社147系統 | F11: 23社144系統 | G11: 24社143系統 | H11: 24社144系統 | I11: 26社144系統
D12: 1254656 | E12: 1187267 | F12: 1386072 | G12: 1279624 | H12: 1079032 | I12: 1116998
A13: 地域内ﾌｨｰﾀﾞｰ系統確保維持費国庫補助金 | C13: 国 | D13: 77社212系統 | E13: 76社246系統 | F13: 82社261系統 | G13: 87社284系統 | H13: 91社260系統 | I13: 94社251系統
D14: 304065 | E14: 347719 | F14: 371983 | G14: 278919 | H14: 246638 | I14: 289425
C15: 道 | H15: - | I15: -
H16: - | I16: -
A17: 広域生活交通 路線維持費 補助金（※） | C17: 国 | H17: - | I17: -
H18: - | I18: -
C19: 道 | D19: 13社48系統 | E19: 12社42系統 | F19: 13社42系統 | G19: 13社47系統 | H19: 12社45系統 | I19: 12社39系統
D20: 112358 | E20: 102871 | F20: 115386 | G20: 126753 | H20: 125240 | I20: 99714
A21: 広域生活バス 路線運行維持 対策事業費 補助金 | C21: 国 | H21: - | I21: -
H22: - | I22: -
C23: 道 | E23: 14社5市町村54系統 | F23: 15社６市町村58系統 | G23: 17社7市町村57系統 | H23: - | I23: -
E24: 62413 | F24: 66955 | G24: 49813 | H24: - | I24: -
A25: 市町村生活バス 路線運行費 補助金 | C25: 国 | H25: - | I25: -
H26: - | I26: -
C27: 道 | D27: 11市町村4社 | E27: 11市町村4社 | F27: 11市町村3社 | G27: 10市町村4社 | H27: 11市町村3社 | I27: 13市町村3社
D28: 24532 | E28: 22305 | F28: 21629 | G28: 22357 | H28: 22230 | I28: 23938
A29: 道内合計 | D29: 3012351 | E29: 3018076 | F29: 3329835 | G29: 3036394 | H29: 2593068 | I29: =I6+I8+I10+I12+I14+I20+I28 -> 2681342 | M29: 全国国庫補助金（内訳）
A30: （内国庫補助計） | D30: 1613382 | E30: 1699706 | F30: 1798743 | G30: 1599854 | H30: 1361395 | I30: =I6+I10+I14 -> 1434715 | M30: フィーダー運行費 | N30: =V41 -> 4013299 | O30: 千円 | V30: フィーダー運行費（千円） | W30: 同減価償却費等（千円） | X30: 公有民営（千円）
A31: 全国国庫補助金 | D31: 13206493 | E31: 16645690 | F31: 12589644 | G31: 14649557 | H31: 12445422 | I31: =N36 -> 13774854.3 | M31: 同減価償却費等 | N31: =W42 -> 201294 | O31: 千円 | U31: 北海道 | V31: 289425 | W31: 11979 | X31: 0
A32: （※） | B32: 広域生活バス路線運行維持対策事業費補助金は、令和２年度から令和４年度まで実施 | M32: 幹線運行費（一般） | N32: 8004672 | O32: 千円 | U32: 東北 | V32: 526580 | W32: 12121 | X32: 0
M33: 同減価償却費（一般） | N33: 1425782.3 | O33: 千円 | U33: 北信 | V33: 467691 | W33: 21589 | X33: 30000
M34: 幹線運行費（復興） | N34: 129807 | O34: 千円 | U34: 関東 | V34: 607313 | W34: 17224 | X34: 0
M35: 幹線運行費（補正） | N35: 0 | O35: 千円 | U35: 中部 | V35: 494182 | W35: 28752 | X35: 4990
N36: =N30+N31+N32+N33+N34+N35 -> 13774854.3 | U36: 近畿 | V36: 435332 | W36: 27890 | X36: 1104
U37: 中国 | V37: 250286 | W37: 10631 | X37: 3750
U38: 四国 | V38: 213590 | W38: 4365 | X38: 0
U39: 九州 | V39: 692746 | W39: 13934 | X39: 12389
U40: 沖縄 | V40: 36154 | W40: 576 | X40: 0
U41: 計 | V41: =SUM(V31:V40) -> 4013299 | W41: =SUM(W31:W40) -> 149061 | X41: =SUM(X31:X40) -> 52233
W42: =W41+X41 -> 201294

Sheet 旅客９（３）
A2: （３）市町村での地域公共交通計画作成状況一覧
N3: （令和7年3月31日現在）

Sheet 旅客１０
A1: １０．索道事業の推移
A3: （１） 事 業 者 数
B5: 区分 | C5: 普通索道 | D5: 特殊索道 | E5: 合 計 | F5: 前年度対比 （％）
A6: 年度
A7: 元 | C7: 18 | D7: 95 | E7: 113 | F7: 100
A8: 2 | C8: 18 | D8: 93 | E8: 111 | F8: 98.2300885
A9: 3 | C9: 18 | D9: 92 | E9: 110 | F9: 99.0990991
A10: 4 | C10: 18 | D10: 91 | E10: 109 | F10: 99.09090909
A11: 5 | C11: 18 | D11: 89 | E11: 107 | F11: 98.2
A12: 6 | C12: 18 | D12: 89 | E12: =SUM(C12:D12) -> 107 | F12: =E12/E11*100 -> 100
A14: （２） 索 道 数
B16: 区分 | C16: 普通索道 | D16: 特殊索道 | E16: 合 計 | F16: 前年度対比 （％）
A17: 年度
A18: =$A$7 -> 元 | C18: 33 | D18: 293 | E18: 326 | F18: 98.78787879
A19: =$A$8 -> 2 | C19: 32 | D19: 290 | E19: 322 | F19: 98.77300613
A20: =$A$9 -> 3 | C20: 32 | D20: 289 | E20: 321 | F20: 99.68944099
A21: =$A$10 -> 4 | C21: 32 | D21: 282 | E21: 314 | F21: 97.81931464
A22: =$A$11 -> 5 | C22: 33 | D22: 280 | E22: 313 | F22: 99.68152866
A23: =$A$12 -> 6 | C23: 33 | D23: 279 | E23: =SUM(C23:D23) -> 312 | F23: =E23/E22*100 -> 99.68051118
A25: （３） キ ロ 数
B27: 区分 | C27: 普通索道 | D27: 特殊索道 | E27: 合 計 | F27: 前年度対比 （％）
A28: 年度
A29: =$A$7 -> 元 | C29: 59.3 | D29: 202.8 | E29: 262.1 | F29: 98.98036254
A30: =$A$8 -> 2 | C30: 57.6 | D30: 201 | E30: 258.6 | F30: 98.66463182
A31: =$A$9 -> 3 | C31: 57.6 | D31: 199 | E31: 256.6 | F31: 99.2266048
A32: =$A$10 -> 4 | C32: 57.6 | D32: 195 | E32: 252.6 | F32: 98.44115355
A33: =$A$11 -> 5 | C33: 57.6 | D33: 193.7 | E33: 251.3 | F33: 99.48535234
A34: =$A$12 -> 6 | C34: 57.6 | D34: 192 | E34: =C34+D34 -> 249.6 | F34: =E34/E33*100 -> 99.32351771
A36: （４） 輸 送 人 員
F37: （ 単 位 ： 千 人 ）
B38: 区分 | C38: 普通索道 | D38: 特殊索道 | E38: 合 計 | F38: 前年度対比 （％）
A39: 年度
A40: =$A$7 -> 元 | C40: 8643 | D40: 32484 | E40: 41127 | F40: 88.42614492
A41: =$A$8 -> 2 | C41: 3530 | D41: 24931 | E41: 28461 | F41: 69.20271355
A42: =$A$9 -> 3 | C42: 4117 | D42: 26535 | E42: 30652 | F42: 107.6982538
A43: =$A$10 -> 4 | C43: 7458 | D43: 34194 | E43: 41652 | F43: 135.8867284
A44: =$A$11 -> 5 | C44: 9495 | D44: 35995 | E44: 45490 | F44: 109.2144435
A45: =$A$12 -> 6 | C45: 12126 | D45: 39902 | E45: =C45+D45 -> 52028 | F45: =E45/E44*100 -> 114.3723895
A46: （注） | C46: １． 北海道運輸局資料による

Sheet 旅客１１（１）（２）
A1: １１．旅 客 航 路 事 業
A2: （１） 支局別旅客航路事業者数等
AD3: （令和7年3月31日現在)
B4: 区 分 | E4: 事 業 者 数 | N4: 航 路 数 | W4: 船 舶 数
E5: 法人 | G5: 地方公共団体 | I5: 個人 | K5: 計 | N5: 一般旅客定期航路 | Q5: 特定旅客定期航路 | S5: 旅客不定期航路 | U5: 計 | W5: カーフェリー | Y5: 一般旅客船 | AB5: 計
A9: 支局別
A10: 本 局 | E10: 6(2) | G10: - | I10: - | K10: 6(2) | N10: 3 | Q10: - | S10: 8 | U10: =SUM(N10:T10) -> 11 | W10: 0 | Y10: 12 | AB10: =SUM(W10:AA10) -> 12
A11: 函 館 | E11: 6(1) | G11: - | I11: - | K11: 6(1) | N11: 6 | Q11: - | S11: 4 | U11: 10 | W11: 10 | Y11: 6 | AB11: 16
A12: 室 蘭 | E12: 3(1) | G12: - | I12: - | K12: 3(1) | N12: 2 | Q12: - | S12: 5 | U12: 7 | W12: 1 | Y12: 5 | AB12: 6
A13: 苫小牧（海事事務所） | E13: 1 | G13: - | I13: - | K13: 1 | N13: 0 | Q13: - | S13: 1 | U13: 1 | W13: 0 | Y13: 2 | AB13: 2
A14: 釧 路 | E14: 8(2) | G14: - | I14: 1 | K14: 9(2) | N14: 2 | Q14: - | S14: 17 | U14: 19 | W14: 0 | Y14: 19 | AB14: 19
A15: 旭 川 | E15: 3 | G15: - | I15: - | K15: 3 | N15: 2 | Q15: - | S15: 1 | U15: 3 | W15: 4 | Y15: 2 | AB15: 6
A16: 帯 広 | E16: 1 | G16: - | I16: - | K16: 1 | N16: 0 | Q16: - | S16: 1 | U16: 1 | W16: 0 | Y16: 2 | AB16: 2
A17: 北 見 | E17: 5 | G17: - | I17: - | K17: 5 | N17: 0 | Q17: - | S17: 12 | U17: 12 | W17: 0 | Y17: 11 | AB17: 11
A18: 計 | E18: 32(6) | G18: =SUM(G10:H17) -> 0 | I18: =SUM(I10:J17) -> 1 | K18: 33(6) | N18: =SUM(N10:N17) -> 15 | Q18: =SUM(Q10:Q17) -> 0 | S18: =SUM(S10:S17) -> 49 | U18: =SUM(U10:U17) -> 64 | W18: 14 | Y18: 55 | AB18: 69
A20: （注） | C20: １． 北海道運輸局資料による
C21: ２． 北海道運輸局管轄の事業者を計上
C22: ３． 航路を管轄する支局別に計上
C23: ４． 事業者数の（ ）は一般旅客定期・旅客不定期航路事業の兼業事業者の内数
C24: ５． 事業者数、船舶数の支局別の合計と計欄の数字は重複があるため一致しない
A27: （２） 旅客航路事業の推移
AD28: （令和7年3月31日現在)
B29: 区分 | D29: 事業者数 | F29: 航路数 | H29: 船舶数 | J29: 輸 送 人 員 （千 人）
J30: 一般旅客定期 （ フェリー ） | Q30: 旅客不定期 | T30: 合 計 | X30: 前年度対比 （％）
A31: 年度
A32: 元 | D32: 37 | E32: -6 | F32: 68 | H32: 72 | J32: 1469 | L32: （ | M32: 1320 | P32: ） | Q32: 821 | T32: =J32+Q32 -> 2290 | X32: 95.6 | Z32: （ | AA32: 99.5 | AD32: ）
A33: 2 | D33: 37 | E33: -6 | F33: 68 | H33: 73 | J33: 723 | L33: （ | M33: 672 | P33: ） | Q33: 244 | T33: 967 | X33: =T33/T32*100 -> 42.22707424 | Z33: （ | AA33: =M33/M32*100 -> 50.90909091 | AD33: ）
A34: 3 | D34: 37 | E34: -6 | F34: 68 | H34: 72 | J34: 774 | L34: ( | M34: 729 | P34: ) | Q34: 258 | T34: 1032 | X34: =T34/T33*100 -> 106.7218201 | Z34: （ | AA34: =M34/M33*100 -> 108.4821429 | AD34: ）
A35: 4 | D35: 34 | E35: -6 | F35: 66 | H35: 68 | J35: 1106 | L35: ( | M35: 1031 | P35: ) | Q35: 470 | T35: 1576 | X35: =T35/T34*100 -> 152.7131783 | Z35: （ | AA35: =M35/M34*100 -> 141.4266118 | AD35: ）
A36: 5 | D36: 32 | E36: -6 | F36: 64 | H36: 69 | J36: 1280 | L36: ( | M36: 1158 | P36: ) | Q36: 706 | T36: 1986 | X36: =T36/T35*100 -> 126.0152284 | Z36: （ | AA36: =M36/M35*100 -> 112.3181377 | AD36: ）
A37: 6 | D37: 33 | E37: -6 | F37: 64 | H37: 64 | J37: 1327 | L37: ( | M37: 1195 | P37: ) | Q37: 768 | T37: 2095 | X37: =T37/T36*100 -> 105.4884189 | Z37: （ | AA37: =M37/M36*100 -> 103.1951641 | AD37: ）
A38: =A37&"/"&A32 -> 6/元 | D38: =D37/D32*100 -> 89.18918919 | F38: =F37/F32*100 -> 94.11764706 | H38: =H37/H32*100 -> 88.88888889 | J38: =J37/J32*100 -> 90.33356025 | L38: （ | M38: =M37/M32*100 -> 90.53030303 | P38: ） | Q38: =Q37/Q32*100 -> 93.54445798 | T38: =T37/T32*100 -> 91.48471616
A40: （注） | C40: １． 北海道運輸局資料による
C41: ２． フェリーは定期の内数
C42: ３． 輸送人員は、北海道運輸局管轄事業者のみの合計
C43: ４． 輸送人員の前年度対比との（ ）はフェリーの対比
C44: ５． 一般旅客定期・旅客不定期航路の兼業事業者数を（ ）内に記載
C45: ="６． "&A37&"／"&A32&"は令和"&A32&"年度を１００と表している" -> ６． 6／元は令和元年度を１００と表している

Sheet 旅客１１（３）（４）
A3: （３） 航路別旅客輸送人員の推移
O4: （単位:千人）
A5: 年度 | B5: 区分 | C5: 沿 岸 ・ 港 内 ・ 通 船 | D5: 湖 沼 | E5: 離 島 | F5: 北 海 道 ～ 本 州 間 フェリー
F6: 苫小牧 | G6: 苫小牧 | H6: 函 館 | I6: 函 館 | J6: 室蘭 | K6: 小 樽 | L6: 苫小牧 | M6: 苫小牧 | N6: 室蘭 | O6: 計
G7: ～
F8: ～ | G8: 仙 台 | H8: ～ | I8: ～ | J8: ～ | K8: ～ | L8: ～ | M8: ～ | N8: ～
G9: ～
F10: 八 戸 | G10: 名古屋 | H10: 大 間 | I10: 青 森 | J10: 青森 | K10: 舞 鶴 | L10: 敦 賀 | M10: 大 洗 | N10: 宮古
A11: 元 | C11: 526 | D11: 444 | E11: 565 | F11: 339 | G11: 187 | H11: 116 | I11: 638 | J11: - | K11: 211 | L11: 155 | M11: 165 | N11: 38 | O11: 1811
A12: 2 | C12: 165 | D12: 130 | E12: 253 | F12: 204 | G12: 96 | H12: 51 | I12: 366 | J12: - | K12: 106 | L12: 76 | M12: 97 | N12: 17 | O12: 1013
A13: 3 | C13: 193 | D13: 109 | E13: 260 | F13: 232 | G13: 113 | H13: 56 | I13: 412 | J13: - | K13: 123 | L13: 88 | M13: 114 | N13: 16 | O13: 1154
A14: 4 | C14: 304 | D14: 240 | E14: 388 | F14: 295 | G14: 157 | H14: 91 | I14: 551 | J14: - | K14: 175 | L14: 120 | M14: 154 | N14: 0 | O14: 1543
A15: 5 | C15: 390 | D15: 430 | E15: 445 | F15: 334 | G15: 184 | H15: 105 | I15: 611 | J15: 8 | K15: 208 | L15: 132 | M15: 169 | N15: 0 | O15: 1751
A16: 6 | C16: 408 | D16: 439 | E16: 457 | F16: 332 | G16: 194 | H16: 111 | I16: 604 | J16: 30 | K16: 219 | L16: 147 | M16: 171 | N16: 0 | O16: =SUM(F16:N16) -> 1808
A18: （注） | C18: １． 北海道運輸局資料による
C19: ２． 小樽～舞鶴は、小樽～新潟、小樽～敦賀を含む
C20: ３． 苫小牧～敦賀は、苫小牧～秋田、苫小牧～新潟、苫小牧～舞鶴を含む
C21: ４． 室蘭～宮古は、平成３０年６月より運航開始、令和２年４月より八戸～宮古休止、令和４年２月より室蘭～八戸休止
C22: ５． 室蘭～青森は、令和５年１０月より運航開始。
A24: （４） クルーズ客船寄港実績の推移
AA25: （単位:回）
A26: 年度 | B26: 港名 | C26: 北海道
C27: 小樽 | D27: 函館 | E27: 室蘭 | F27: 釧路 | G27: 網走 | H27: 羅臼 | I27: 沓形 | J27: 香深 | K27: 稚内 | L27: 根室 | M27: 十勝 | N27: 浦河 | O27: 岩内 | P27: 奥尻 | Q27: 留萌 | R27: 苫小牧 | S27: 江差 | T27: ウトロ | U27: 白老 | V27: 鴛泊 | W27: 青苗 | X27: 神威脇 | AA27: 計
A28: =$A$11 -> 元 | C28: 29 | D28: 47 | E28: 5 | F28: 15 | G28: 2 | H28: 5 | I28: 8 | J28: 5 | K28: 3 | L28: 1 | M28: 1 | N28: 1 | O28: 1 | P28: 1 | Q28: 1 | R28: 5 | AA28: 130
A29: =$A$12 -> 2 | AA29: 0
A30: =$A$13 -> 3 | D30: 1 | E30: 1 | AA30: 2
A31: =$A$14 -> 4 | C31: 6 | D31: 9 | E31: 3 | F31: 2 | H31: 4 | I31: 4 | K31: 1 | U31: 2 | AA31: 31
A32: =$A$15 -> 5 | C32: 22 | D32: 48 | E32: 13 | F32: 12 | G32: 1 | H32: 5 | I32: 8 | K32: 2 | L32: 2 | P32: 2 | R32: 2 | U32: 1 | V32: 1 | W32: 1 | X32: 1 | AA32: 121
A33: =$A$16 -> 6 | C33: 32 | D33: 58 | E33: 7 | F33: 14 | H33: 4 | I33: 4 | J33: 2 | K33: 5 | R33: 2 | W33: 1 | X33: 2 | AA33: =SUM(C33:Z33) -> 131
A35: （注） | C35: １． 北海道運輸局資料による

Sheet 旅客１２（１）
A1: １２．航 空 輸 送 実 績
A3: （１） 航空旅客輸送人員の推移
AK4: （単位：千人、％）
B5: 空港名 | C5: 新 千 歳 | F5: 丘 珠 | I5: 函 館 | L5: 旭 川 | O5: 釧 路 | R5: 女 満 別 | U5: 帯 広 | X5: 稚 内 | AA5: 中 標 津 | AD5: 紋 別 | AG5: 奥 尻 | AJ5: 利 尻 | AM5: 合 計
A6: 年度
A7: 元 | C7: 18317 | F7: 257 | I7: 1444 | L7: 963 | O7: 770 | R7: 747 | U7: 593 | X7: 168 | AA7: 182 | AD7: 66 | AG7: 11 | AJ7: 42 | AM7: 23560
A8: 2 | C8: 6037 | F8: 161 | I8: 555 | L8: 279 | O8: 331 | R8: 286 | U8: 190 | X8: 55 | AA8: 55 | AD8: 21 | AG8: 7 | AJ8: 22 | AM8: 7999
A9: 3 | C9: 9008 | F9: 197 | I9: 769 | L9: 456 | O9: 427 | R9: 459 | U9: 288 | X9: 78 | AA9: 82 | AD9: 36 | AG9: 9 | AJ9: 28 | AM9: 11837
A10: 4 | C10: 16630 | F10: 317 | I10: 1361 | L10: 851 | O10: 678 | R10: 719 | U10: 536 | X10: 146 | AA10: 143 | AD10: 50 | AG10: 12 | AJ10: 46 | AM10: 21489
A11: 5 | C11: 19790 | F11: 435 | I11: 1558 | L11: 1012 | O11: 713 | R11: 754 | U11: 637 | X11: 163 | AA11: 191 | AD11: 65 | AG11: 15 | AJ11: 54 | AM11: 25387
A12: 6 | C12: 20666 | F12: 572 | I12: 1700 | L12: 1108 | O12: 744 | R12: 789 | U12: 639 | X12: 174 | AA12: 216 | AD12: 72 | AG12: 14 | AJ12: 60 | AM12: =SUM(C12:AL12) -> 26754
A13: （指数） | C13: （ | D13: =C12/AM12*100 -> 77.24452418 | E13: ） | F13: （ | G13: =F12/AM12*100 -> 2.137998056 | H13: ） | I13: （ | J13: =I12/AM12*100 -> 6.354190028 | K13: ） | L13: （ | M13: =L12/AM12*100 -> 4.141436794 | N13: ） | O13: （ | P13: =O12/AM12*100 -> 2.780892577 | Q13: ） | R13: （ | S13: =R12/AM12*100 -> 2.949091725 | T13: ） | U13: （ | V13: =U12/AM12*100 -> 2.388427899 | W13: ） | X13: （ | Y13: =X12/AM12*100 -> 0.6503700381 | Z13: ） | AA13: （ | AB13: =AA12/AM12*100 -> 0.8073559094 | AC13: ） | AD13: （ | AE13: =AD12/AM12*100 -> 0.2691186365 | AF13: ） | AG13: （ | AH13: =AG12/AM12*100 -> 0.05232862376 | AI13: ） | AJ13: ( | AK13: =AJ12/AM12*100 -> 0.2242655304 | AL13: ） | AM13: （ | AN13: 100 | AO13: ）
A14: =A12&"/"&A7 -> 6/元 | C14: =C12/C7*100 -> 112.8241524 | F14: =F12/F7*100 -> 222.5680934 | I14: =I12/I7*100 -> 117.7285319 | L14: =L12/L7*100 -> 115.0571132 | O14: =O12/O7*100 -> 96.62337662 | R14: =R12/R7*100 -> 105.62249 | U14: =U12/U7*100 -> 107.7571669 | X14: =X12/X7*100 -> 103.5714286 | AA14: =AA12/AA7*100 -> 118.6813187 | AD14: =AD12/AD7*100 -> 109.0909091 | AG14: =AG12/AG7*100 -> 127.2727273 | AJ14: =AJ12/AJ7*100 -> 142.8571429 | AM14: =AM12/AM7*100 -> 113.5568761
A16: （注） | B16: １． 航空輸送統計年報による
B17: ="２．"&A14 &"は令和"&A7&"年度を１００と表している" -> ２．6/元は令和元年度を１００と表している

Sheet 旅客１２（２）１道内
A1: （２） 航空路線別旅客輸送人員の推移
B3: 道 内
J4: （ 単位：千人 、％ ） | R4: ↗ここに運輸の動き月報の航空輸送入力シートの道内部分を貼り付ける
A5: 年 度 | B5: 区 分 | C5: 札 幌 | D5: 札 幌 | E5: 札 幌 | F5: 札 幌 | G5: 札 幌 | H5: 札 幌 | I5: 札 幌 | J5: 函 館 | R5: 発 | S5: 着
Q6: 新千歳～稚内 | R6: 30293 | S6: 31211
C7: ～ | D7: ～ | E7: ～ | F7: ～ | G7: ～ | H7: ～ | I7: ～ | J7: ～ | Q7: 新千歳～釧路 | R7: 39048 | S7: 43038
Q8: 新千歳～函館 | R8: 40314 | S8: 39541
C9: 稚 内 | D9: 釧 路 | E9: 函 館 | F9: 利 尻 | G9: 中標津 | H9: 女満別 | I9: 奥尻 | J9: 奥 尻 | Q9: 新千歳～旭川
A10: 元 | C10: 56 | D10: 164 | E10: 187 | F10: 42 | G10: 104 | H10: 208 | I10: － | J10: 11 | Q10: 新千歳～利尻 | R10: 15079 | S10: 13370 | X10: 札 幌 | Y10: 札 幌 | Z10: 札 幌 | AA10: 札 幌 | AB10: 札 幌 | AC10: 札 幌 | AD10: 札 幌 | AE10: 函 館
A11: 2 | C11: 43 | D11: 88 | E11: 96 | F11: 22 | G11: 49 | H11: 109 | I11: － | J11: 7 | Q11: 新千歳～帯広 | X11: ～ | Y11: ～ | Z11: ～ | AA11: ～ | AB11: ～ | AC11: ～ | AD11: ～ | AE11: ～
A12: 3 | C12: 38 | D12: 98 | E12: 116 | F12: 28 | G12: 58 | H12: 136 | I12: 2 | J12: 8 | Q12: 新千歳～中標津 | R12: 48005 | S12: 49675 | X12: 稚 内 | Y12: 釧 路 | Z12: 函 館 | AA12: 利 尻 | AB12: 中標津 | AC12: 女満別 | AD12: 奥尻 | AE12: 奥 尻
A13: 4 | C13: 54.512 | D13: 140.85 | E13: 178.955 | F13: 45.834 | G13: 89.103 | H13: 210.118 | I13: 3.791 | J13: 8.695 | Q13: 新千歳～紋別 | X13: =R6+S6+R17+S17 -> 61504 | Y13: =R7+S7+R18+S18 -> 161947 | Z13: =R8+S8+R19+S19 -> 236657 | AA13: =R10+S10+R21+S21 -> 59653 | AB13: =R12+S12+R23+S23 -> 134813 | AC13: =R14+S14+R25+S25 -> 257682 | AD13: =R15+S15+R26+S26 -> 4112 | AE13: =R28+S28 -> 10246
A14: 5 | C14: 58.586 | D14: 153.972 | E14: 202.175 | F14: 53.986 | G14: 114.633 | H14: 233.56 | I14: 4.236 | J14: 11.149 | Q14: 新千歳～女満別 | R14: 104980 | S14: 106732
A15: 6 | C15: =X13/1000 -> 61.504 | D15: 161.947 | E15: 236.657 | F15: 59.653 | G15: 134.813 | H15: 257.682 | I15: 4.112 | J15: 10.246 | Q15: 新千歳～奥尻
A16: =A15&"/"&A10 -> 6/元 | C16: =C15/C10*100 -> 109.8285714 | D16: 98.74817073 | E16: 126.5545455 | F16: 142.0309524 | G16: 129.6278846 | H16: 123.8855769 | I16: =IFERROR(I15/I10%,"－") -> － | J16: =J15/J10*100 -> 93.14545455
Q17: 丘珠～稚内
A18: （注） | C18: １． 「航空輸送統計年報」による | Q18: 丘珠～釧路 | R18: 39816 | S18: 40045
C19: ２． 札幌とは、新千歳・丘珠両空港の合計値 | Q19: 丘珠～函館 | R19: 78936 | S19: 77866
C20: ="３． "&A16&"は令和"&A10&"年度を１００と表している" -> ３． 6/元は令和元年度を１００と表している | Q20: 丘珠～旭川
Q21: 丘珠～利尻 | R21: 15763 | S21: 15441
Q22: 丘珠～帯広
Q23: 丘珠～中標津 | R23: 18550 | S23: 18583
Q24: 丘珠～紋別
Q25: 丘珠～女満別 | R25: 23021 | S25: 22949
Q26: 丘珠～奥尻 | R26: 2005 | S26: 2107
Q28: 函館～奥尻 | R28: 5286 | S28: 4960

Sheet 旅客１２（２）２道外
B3: 対 道 外 間 | AR3: 発 | AS3: 着 | AU3: 発 | AV3: 着 | AX3: 発 | AY3: 着 | BA3: 発 | BB3: 着 | BD3: 発 | BE3: 着 | BG3: 発 | BH3: 着 | BM3: 稚 内 | BN3: 釧 路 | BO3: 釧 路 | BP3: 釧 路 | BQ3: 函 館 | BR3: 函 館 | BS3: 函 館 | BT3: 旭 川 | BU3: 旭 川 | BV3: 旭 川 | BW3: 帯 広 | BX3: 帯 広 | BY3: 中標津 | BZ3: 紋 別 | CA3: 女満別 | CB3: 女満別 | CC3: 女満別
S4: （単位 : 千人、％） | AQ4: 新千歳～青森 | AR4: 90928 | AS4: 88284 | AT4: 新千歳～能登 | AW4: 新千歳～北九州 | AZ4: 新千歳～多良間 | BC4: 稚内～成田 | BF4: 稚内～大阪 | BM4: ～ | BN4: ～ | BO4: ～ | BP4: ～ | BQ4: ～ | BR4: ～ | BS4: ～ | BT4: ～ | BU4: ～ | BV4: ～ | BW4: ～ | BX4: ～ | BY4: ～ | BZ4: ～ | CA4: ～ | CB4: ～ | CC4: ～
A5: 年 度 | B5: 区 分 | C5: 稚 内 | D5: 釧 路 | E5: 釧 路 | F5: 釧 路 | G5: 函 館 | H5: 函 館 | I5: 函 館 | J5: 旭 川 | K5: 旭 川 | L5: 旭 川 | M5: 帯 広 | N5: 帯 広 | O5: 中標津 | P5: 紋 別 | Q5: 女満別 | R5: 女満別 | S5: 女満別 | AQ5: 新千歳～三沢 | AT5: 新千歳～松本 | AU5: 29281 | AV5: 29571 | AW5: 新千歳～佐賀 | AZ5: 新千歳～北大東島 | BC5: 釧路～成田 | BF5: 釧路～大阪 | BG5: 714 | BH5: 874 | BM5: 東 京 | BN5: 東 京 | BO5: 名古屋 | BP5: 大 阪 | BQ5: 東 京 | BR5: 名古屋 | BS5: 大 阪 | BT5: 東 京 | BU5: 名古屋 | BV5: 大 阪 | BW5: 東 京 | BX5: 名古屋 | BY5: 東 京 | BZ5: 東 京 | CA5: 東 京 | CB5: 名古屋 | CC5: 大 阪
AQ6: 新千歳～花巻 | AR6: 41184 | AS6: 40846 | AT6: 新千歳～静岡 | AU6: 53818 | AV6: 51978 | AW6: 新千歳～長崎 | AZ6: 新千歳～下地島 | BC6: 函館～成田 | BF6: 函館～大阪 | BG6: 89004 | BH6: 95251 | BM6: =BA14+BB14+BD4+BE4 -> 112957 | BN6: =BA15+BB15+BD5+BE5 -> 559727 | BO6: =BD17+BE17 -> 3864 | BP6: =BG5+BH5+BG17+BH17 -> 18177 | BQ6: =BA16+BB16+BD6+BE6 -> 1168125 | BR6: =BD18+BE18 -> 100811 | BS6: =BG6+BH6+BG18+BH18 -> 184255 | BT6: =BA17+BB17+BD7+BE7 -> 1081489 | BU6: =BD19+BE19 -> 17520 | BV6: =BG7+BH7+BG19+BH19 -> 8883 | BW6: =BA19+BB19+BD9+BE9 -> 633750 | BX6: =BD21+BE21 -> 4810 | BY6: =BA20+BB20+BD10+BE10 -> 81383 | BZ6: =BA21+BB21+BD11+BE11 -> 71737 | CA6: =BA22+BB22+BD12+BE12 -> 495982 | CB6: =BD24+BE24 -> 15955 | CC6: =BG12+BH12+BG24+BH24 -> 19527
C7: ～ | D7: ～ | E7: ～ | F7: ～ | G7: ～ | H7: ～ | I7: ～ | J7: ～ | K7: ～ | L7: ～ | M7: ～ | N7: ～ | O7: ～ | P7: ～ | Q7: ～ | R7: ～ | S7: ～ | AQ7: 新千歳～仙台 | AR7: 443816 | AS7: 441063 | AT7: 新千歳～名古屋 | AW7: 新千歳～福江 | AZ7: 丘珠～三沢 | BA7: 6478 | BB7: 6759 | BC7: 旭川～成田 | BD7: 53012 | BE7: 54010 | BF7: 旭川～大阪 | BG7: 4198 | BH7: 4685 | BM7: =BM6/1000 -> 112.957 | BN7: 559.727 | BO7: 3.864 | BP7: 18.177 | BQ7: 1168.125 | BR7: 100.811 | BS7: 184.255 | BT7: 1081.489 | BU7: 17.52 | BV7: 8.883 | BW7: 633.75 | BX7: 4.81 | BY7: 81.383 | BZ7: 71.737 | CA7: 495.982 | CB7: 15.955 | CC7: 19.527
AQ8: 新千歳～秋田 | AR8: 37260 | AS8: 37613 | AT8: 新千歳～中部 | AU8: 705085 | AV8: 694243 | AW8: 新千歳～壱岐 | AZ8: 丘珠～秋田 | BA8: 20300 | BB8: 19894 | BC8: 利尻～成田 | BF8: 利尻～大阪
C9: 東 京 | D9: 東 京 | E9: 名古屋 | F9: 大 阪 | G9: 東 京 | H9: 名古屋 | I9: 大 阪 | J9: 東 京 | K9: 名古屋 | L9: 大 阪 | M9: 東 京 | N9: 名古屋 | O9: 東 京 | P9: 東 京 | Q9: 東 京 | R9: 名古屋 | S9: 大 阪 | AQ9: 新千歳～大館 | AT9: 新千歳～大阪（伊丹） | AU9: 681272 | AV9: 673733 | AW9: 新千歳～対馬 | AZ9: 丘珠～新潟 | BA9: 22179 | BB9: 23102 | BC9: 帯広～成田 | BF9: 帯広～大阪 | BN9: 表に載ってる数字全部の合計（重複有り）と合っているかの確認
A10: 元 | C10: 112 | D10: 492 | E10: 3 | F10: 110 | G10: 1023 | H10: 85 | I10: 137 | J10: 901 | K10: 54 | L10: 8 | M10: 589 | N10: 4 | O10: 78 | P10: 66 | Q10: 471 | R10: 47 | S10: 20 | AQ10: 新千歳～山形 | AR10: 20021 | AS10: 19703 | AT10: 新千歳～関西 | AU10: 734539 | AV10: 731277 | AW10: 新千歳～熊本 | AZ10: 丘珠～松本 | BA10: 11356 | BB10: 11177 | BC10: 中標津～成田 | BF10: 中標津～大阪 | BN10: =BA24+BB24+BD14+BE14+BG14+BH14+BD26+BE26+BG26+BH26+SUM(BM16:BV16,BM6:CC6,BM26:BZ26) -> 41007100 | BQ10: 左の表の数字 | BR10: =SUM(AR4:BH27) -> 41007100
A11: 2 | C11: 12 | D11: 194 | E11: 1 | F11: 48 | G11: 356 | H11: 32 | I11: 63 | J11: 274 | K11: 1 | L11: 4 | M11: 188 | N11: 2 | O11: 6 | P11: 21 | Q11: 171 | R11: 2 | S11: 4 | AQ11: 新千歳～庄内 | AT11: 新千歳～神戸 | AU11: 334453 | AV11: 330334 | AW11: 新千歳～天草 | AZ11: 丘珠～静岡 | BA11: 13385 | BB11: 13519 | BC11: 紋別～成田 | BF11: 紋別～大阪 | BO11: =BR10-BN10 -> 0
A12: 3 | C12: 40 | D12: 271 | E12: 2 | F12: 55 | G12: 513 | H12: 39 | I12: 92 | J12: 450 | K12: 3 | L12: 3 | M12: 286 | N12: 2 | O12: 24 | P12: 36 | Q12: 278 | R12: 3 | S12: 42 | AQ12: 新千歳～福島 | AR12: 19884 | AS12: 19644 | AT12: 新千歳～但馬 | AW12: 新千歳～大分 | AZ12: 丘珠～名古屋 | BA12: 34209 | BB12: 34408 | BC12: 女満別～成田 | BF12: 女満別～大阪 | BG12: 2765 | BH12: 3252
A13: 4 | C13: 91.308 | D13: 457.404 | E13: 3.314 | F13: 76.168 | G13: 930.413 | H13: 78.658 | I13: 163.943 | J13: 829.678 | K13: 13.865 | L13: 7.838 | M13: 532.275 | N13: 4.104 | O13: 54.072 | P13: 50.113 | Q13: 430.354 | R13: 9.739 | S13: 69.264 | AQ13: 新千歳～百里（茨城） | AR13: 100800 | AS13: 98903 | AT13: 新千歳～南紀白浜 | AW13: 新千歳～宮崎 | BC13: 奥尻～成田 | BF13: 奥尻～大阪 | BM13: 札 幌 | BN13: 札 幌 | BO13: 札 幌 | BP13: 札 幌 | BQ13: 札 幌 | BR13: 札 幌 | BS13: 札 幌 | BT13: 札 幌 | BU13: 札 幌 | BV13: 札 幌
A14: 5 | C14: 103.998 | D14: 531.368 | E14: 3.662 | F14: 23.893 | G14: 1066.313 | H14: 98.172 | I14: 179.741 | J14: 984.191 | K14: 18.759 | L14: 8.826 | M14: 632.539 | N14: 4.953 | O14: 75.883 | P14: 65.176 | Q14: 480.534 | R14: 15.816 | S14: 24.2 | AQ14: 新千歳～成田 | AR14: 1019515 | AS14: 1007404 | AT14: 新千歳～鳥取 | AW14: 新千歳～鹿児島 | AZ14: 稚内～羽田 | BA14: 55103 | BB14: 57854 | BC14: 新千歳～成田 | BD14: 1019515 | BE14: 1007404 | BF14: 新千歳～大阪 | BG14: 681272 | BH14: 673733 | BM14: ～ | BN14: ～ | BO14: ～ | BP14: ～ | BQ14: ～ | BR14: ～ | BS14: ～ | BT14: ～ | BU14: ～ | BV14: ～
A15: 6 | C15: =BM7 -> 112.957 | D15: 559.727 | E15: 3.864 | F15: 18.177 | G15: 1168.125 | H15: 100.811 | I15: 184.255 | J15: 1081.489 | K15: 17.52 | L15: 8.883 | M15: 633.75 | N15: 4.81 | O15: 81.383 | P15: 71.737 | Q15: 495.982 | R15: 15.955 | S15: 19.527 | AQ15: 新千歳～羽田 | AR15: 4953827 | AS15: 4906113 | AT15: 新千歳～美保（米子） | AW15: 新千歳～種子島 | AZ15: 釧路～羽田 | BA15: 275543 | BB15: 284184 | BC15: 丘珠～成田 | BF15: 丘珠～大阪 | BM15: 青 森 | BN15: 三 沢 | BO15: 花 巻 | BP15: 仙 台 | BQ15: 秋 田 | BR15: 山 形 | BS15: 福 島 | BT15: 茨 城 | BU15: 東 京 | BV15: 新 潟
A16: =A15&"/"&A10 -> 6/元 | C16: =C15/C10*100 -> 100.8544643 | D16: 113.7656504 | E16: 128.8 | F16: 16.52454545 | G16: 114.186217 | H16: 118.6011765 | I16: 134.4927007 | J16: 120.0320755 | K16: 32.44444444 | L16: 111.0375 | M16: 107.5976231 | N16: 120.25 | O16: 104.3371795 | P16: 108.6924242 | Q16: 105.304034 | R16: 33.94680851 | S16: 97.635 | AQ16: 新千歳～大島 | AT16: 新千歳～隠岐 | AW16: 新千歳～屋久島 | AZ16: 函館～羽田 | BA16: 578160 | BB16: 589965 | BC16: 稚内～中部 | BF16: 稚内～関西 | BM16: =AR4+AS4 -> 179212 | BN16: =AR5+AS5+BA7+BB7 -> 13237 | BO16: =AR6+AS6 -> 82030 | BP16: =AR7+AS7 -> 884879 | BQ16: =AR8+AS8+BA8+BB8 -> 115067 | BR16: =AR10+AS10 -> 39724 | BS16: =AR12+AS12 -> 39528 | BT16: =AR13+AS13 -> 199703 | BU16: =AR14+AS14+AR15+AS15+BA25+BB25+BD15+BE15 -> 11886859 | BV16: =AR25+AS25+BA9+BB9 -> 218955
AQ17: 新千歳～三宅島 | AT17: 新千歳～出雲 | AU17: 2551 | AV17: 2533 | AW17: 新千歳～奄美 | AZ17: 旭川～羽田 | BA17: 473214 | BB17: 501253 | BC17: 釧路～中部 | BD17: 1840 | BE17: 2024 | BF17: 釧路～関西 | BG17: 8110 | BH17: 8479 | BM17: =BM16/1000 -> 179.212 | BN17: 13.237 | BO17: 82.03 | BP17: 884.879 | BQ17: 115.067 | BR17: 39.724 | BS17: 39.528 | BT17: 199.703 | BU17: 11886.859 | BV17: 218.955
Z18: （単位 : 千人、％） | AQ18: 新千歳～八丈島 | AT18: 新千歳～石見 | AW18: 新千歳～喜界島 | AZ18: 利尻～羽田 | BC18: 函館～中部 | BD18: 48827 | BE18: 51984 | BF18: 函館～関西
A19: 年 度 | B19: 区 分 | C19: 札 幌 | D19: 札 幌 | E19: 札 幌 | F19: 札 幌 | G19: 札 幌 | H19: 札 幌 | I19: 札 幌 | J19: 札 幌 | K19: 札 幌 | L19: 札 幌 | M19: 札 幌 | N19: 札 幌 | O19: 札 幌 | P19: 札 幌 | Q19: 札 幌 | R19: 札 幌 | S19: 札 幌 | T19: 札 幌 | U19: 札 幌 | V19: 札 幌 | W19: 札 幌 | X19: 札 幌 | Y19: 札 幌 | Z19: 札 幌 | AQ19: 新千歳～調布 | AT19: 新千歳～岡山 | AU19: 43951 | AV19: 41765 | AW19: 新千歳～沖永良部 | AZ19: 帯広～羽田 | BA19: 314379 | BB19: 319371 | BC19: 旭川～中部 | BD19: 7565 | BE19: 9955 | BF19: 旭川～関西
AQ20: 新千歳～新島 | AT20: 新千歳～広島 | AU20: 94534 | AV20: 94335 | AW20: 新千歳～与論 | AZ20: 中標津～羽田 | BA20: 40274 | BB20: 41109 | BC20: 利尻～中部 | BF20: 利尻～関西
C21: ～ | D21: ～ | E21: ～ | F21: ～ | G21: ～ | H21: ～ | I21: ～ | J21: ～ | K21: ～ | L21: ～ | M21: ～ | N21: ～ | O21: ～ | P21: ～ | Q21: ～ | R21: ～ | S21: ～ | T21: ～ | U21: ～ | V21: ～ | W21: ～ | X21: ～ | Y21: ～ | Z21: ～ | AQ21: 新千歳～神津島 | AT21: 新千歳～山口宇部 | AW21: 新千歳～徳之島 | AZ21: 紋別～羽田 | BA21: 32400 | BB21: 39337 | BC21: 帯広～中部 | BD21: 2431 | BE21: 2379 | BF21: 帯広～関西
AQ22: 新千歳～青ヶ島 | AT22: 新千歳～岩国 | AW22: 新千歳～那覇 | AX22: 59854 | AY22: 60950 | AZ22: 女満別～羽田 | BA22: 244583 | BB22: 251399 | BC22: 中標津～中部 | BF22: 中標津～関西
C23: 青 森 | D23: 三 沢 | E23: 花 巻 | F23: 仙 台 | G23: 秋 田 | H23: 山 形 | I23: 福 島 | J23: 茨 城 | K23: 東 京 | L23: 新 潟 | M23: 富 山 | N23: 小 松 | O23: 松 本 | P23: 静 岡 | Q23: 名古屋 | R23: 大 阪 | S23: 神 戸 | T23: 出 雲 | U23: 岡 山 | V23: 広 島 | W23: 徳 島 | X23: 松 山 | Y23: 福 岡 | Z23: 那 覇 | AQ23: 新千歳～御蔵島 | AT23: 新千歳～徳島 | AU23: 1916 | AV23: 1976 | AW23: 新千歳～南大東島 | AZ23: 奥尻～羽田 | BC23: 紋別～中部 | BF23: 紋別～関西 | BM23: 札 幌 | BN23: 札 幌 | BO23: 札 幌 | BP23: 札 幌 | BQ23: 札 幌 | BR23: 札 幌 | BS23: 札 幌 | BT23: 札 幌 | BU23: 札 幌 | BV23: 札 幌 | BW23: 札 幌 | BX23: 札 幌 | BY23: 札 幌 | BZ23: 札 幌
A24: =$A$10 -> 元 | C24: 151 | D24: 18 | E24: 87 | F24: 840 | G24: 112 | H24: 33 | I24: 54 | J24: 181 | K24: 10626 | L24: 151 | M24: 64 | N24: 82 | O24: 51 | P24: 104 | Q24: 1522 | R24: 2223 | S24: 521 | T24: 5 | U24: 79 | V24: 156 | W24: 3 | X24: 31 | Y24: 619 | Z24: 97 | AQ24: 新千歳～利島 | AT24: 新千歳～高松 | AW24: 新千歳～久米島 | AZ24: 新千歳～羽田 | BA24: 4953827 | BB24: 4906113 | BC24: 女満別～中部 | BD24: 8609 | BE24: 7346 | BF24: 女満別～関西 | BG24: 6670 | BH24: 6840 | BM24: ～ | BN24: ～ | BO24: ～ | BP24: ～ | BQ24: ～ | BR24: ～ | BS24: ～ | BT24: ～ | BU24: ～ | BV24: ～ | BW24: ～ | BX24: ～ | BY24: ～ | BZ24: ～
A25: =$A$11 -> 2 | C25: 48 | D25: 5 | E25: 24 | F25: 319 | G25: 28 | H25: 8 | I25: 11 | J25: 60 | K25: 3396 | L25: 50 | M25: 2 | N25: 5 | O25: 21 | P25: 16 | Q25: 482 | R25: 825 | S25: 195 | T25: 2 | U25: 1 | V25: 32 | W25: 1 | X25: 7 | Y25: 224 | Z25: 29 | AQ25: 新千歳～新潟 | AR25: 87766 | AS25: 85908 | AT25: 新千歳～松山 | AW25: 新千歳～宮古島 | AZ25: 丘珠～羽田 | BC25: 奥尻～中部 | BF25: 奥尻～関西 | BM25: 富 山 | BN25: 小 松 | BO25: 松 本 | BP25: 静 岡 | BQ25: 名古屋 | BR25: 大 阪 | BS25: 神 戸 | BT25: 出 雲 | BU25: 岡 山 | BV25: 広 島 | BW25: 徳 島 | BX25: 松 山 | BY25: 福 岡 | BZ25: 那 覇
A26: =$A$12 -> 3 | C26: 72 | D26: 8 | E26: 33 | F26: 443 | G26: 40 | H26: 14 | I26: 22 | J26: 94 | K26: 5131 | L26: 64 | M26: 11 | N26: 15 | O26: 34 | P26: 42 | Q26: 720 | R26: 1216 | S26: 288 | T26: 1 | U26: 2 | V26: 54 | W26: 1 | X26: 7 | Y26: 359 | Z26: 59 | AQ26: 新千歳～富山 | AR26: 40839 | AS26: 40098 | AT26: 新千歳～高知 | AW26: 新千歳～石垣 | BC26: 新千歳～中部 | BD26: 705085 | BE26: 694243 | BF26: 新千歳～関西 | BG26: 734539 | BH26: 731277 | BM26: =AR26+AS26 -> 80937 | BN26: =AR27+AS27 -> 95462 | BO26: =AU5+AV5+BA10+BB10 -> 81385 | BP26: =AU6+AV6+BA11+BB11 -> 132700 | BQ26: =AU7+AV7+AU8+AV8+BA12+BB12+BD27+BE27 -> 1467945 | BR26: =AU9+AV9+AU10+AV10+BG15+BH15+BG27+BH27 -> 2820821 | BS26: =AU11+AV11 -> 664787 | BT26: =AU17+AV17 -> 5084 | BU26: =AU19+AV19 -> 85716 | BV26: =AU20+AV20 -> 188869 | BW26: =AU23+AV23 -> 3892 | BX26: =AU25+AV25 -> 0 | BY26: =AU27+AV27 -> 913544 | BZ26: =AX22+AY22 -> 120804
A27: =$A$13 -> 4 | C27: 134.368 | D27: 13.327 | E27: 68.968 | F27: 728.816 | G27: 89.636 | H27: 30.102 | I27: 31.332 | J27: 167.806 | K27: 9449.062 | L27: 131.058 | M27: 51.279 | N27: 77.35 | O27: 63.977 | P27: 89.949 | Q27: 1299.748 | R27: 2316.829 | S27: 520.639 | T27: 4.706 | U27: 15.215 | V27: 170.58 | W27: 3.19 | X27: 0 | Y27: 657.687 | Z27: 107.784 | AQ27: 新千歳～小松 | AR27: 48426 | AS27: 47036 | AT27: 新千歳～福岡 | AU27: 460252 | AV27: 453292 | AW27: 新千歳～与那国 | BC27: 丘珠～中部 | BF27: 丘珠～関西 | BM27: =BM26/1000 -> 80.937 | BN27: 95.462 | BO27: 81.385 | BP27: 132.7 | BQ27: 1467.945 | BR27: 2820.821 | BS27: 664.787 | BT27: 5.084 | BU27: 85.716 | BV27: 188.869 | BW27: 3.892 | BX27: 0 | BY27: 913.544 | BZ27: 120.804
A28: =$A$14 -> 5 | C28: 165.268 | D28: 13.143 | E28: 86.354 | F28: 851.765 | G28: 117.6 | H28: 37.646 | I28: 38.225 | J28: 196.658 | K28: 11362.115 | L28: 184.186 | M28: 76.261 | N28: 100.612 | O28: 82.655 | P28: 111.547 | Q28: 1457.229 | R28: 2763.683 | S28: 586.792 | T28: 5.402 | U28: 79.65 | V28: 190.276 | W28: 3.662 | X28: 0 | Y28: 774.08 | Z28: 119.041
A29: =$A$15 -> 6 | C29: =BM17 -> 179.212 | D29: 13.237 | E29: 82.03 | F29: 884.879 | G29: 115.067 | H29: 39.724 | I29: 39.528 | J29: 199.703 | K29: 11886.859 | L29: 218.955 | M29: =BM27 -> 80.937 | N29: 95.462 | O29: 81.385 | P29: 132.7 | Q29: 1467.945 | R29: 2820.821 | S29: 664.787 | T29: 5.084 | U29: 85.716 | V29: 188.869 | W29: 3.892 | X29: 0 | Y29: 913.544 | Z29: 120.804
A30: =$A$16 -> 6/元 | C30: =C29/C24*100 -> 118.6834437 | D30: 73.53888889 | E30: 94.28735632 | F30: 105.3427381 | G30: 102.7383929 | H30: 120.3757576 | I30: 73.2 | J30: 110.3331492 | K30: 111.8657915 | L30: 145.0033113 | M30: 126.4640625 | N30: 116.4170732 | O30: 159.5784314 | P30: 127.5961538 | Q30: 96.44842313 | R30: 126.8925326 | S30: 127.5982726 | T30: 101.68 | U30: 108.5012658 | V30: 121.0698718 | W30: 129.7333333 | X30: － | Y30: =Y29/Y24*100 -> 147.5838449 | Z30: =Z29/Z24*100 -> 124.5402062
A33: （注） | B33: １． 「航空輸送統計年報」による
B34: ２． 札幌とは、新千歳・丘珠両空港の合計値
B35: ３． 東京とは、成田・羽田両空港の合計値
B36: ４． 大阪とは、関西・大阪（伊丹）両空港の合計値
B37: ５． 名古屋とは、中部・名古屋（小牧）両空港の合計値
B38: ="６． "&A30&"は令和"&A24&"年度を１００と表している" -> ６． 6/元は令和元年度を１００と表している

Sheet 旅客１２（２）３海外
B5: 海 外
K6: (単位 ： 人 、％）
A7: 年度 | B7: 区分 | C7: 新 千 歳 | D7: 新 千 歳 | E7: 新 千 歳 | F7: 新 千 歳 | G7: 新 千 歳 | H7: 新 千 歳 | I7: 函 館 | J7: 函 館 | K7: 旭 川 | L7: 旭 川
C8: ～ | D8: ～ | E8: ～ | F8: ～ | G8: ～ | H8: ～ | I8: ～ | J8: ～ | K8: ～ | L8: ～
C9: 中 国 | D9: 韓 国 | E9: 台 湾 | F9: 香 港 | G9: タイ | H9: そ の 他 | I9: 台 湾 | J9: 香 港 | K9: 韓 国 | L9: 台 湾
A10: 元 | C10: 590798 | D10: 858490 | E10: 754529 | F10: 417744 | G10: 312871 | H10: 352443 | I10: 147531 | J10: － | K10: 13234 | L10: 29127
A11: 2 | C11: － | D11: － | E11: － | F11: － | G11: － | H11: － | I11: － | J11: － | K11: － | L11: －
A12: 3 | C12: － | D12: － | E12: － | F12: － | G12: － | H12: － | I12: － | J12: － | K12: － | L12: －
A13: 4 | C13: － | D13: 413378 | E13: 204257 | F13: 105238 | G13: 94266 | H13: 94430 | I13: － | J13: － | K13: － | L13: －
A14: 5 | C14: 129945 | D14: 1376379 | E14: 711857 | F14: 301589 | G14: 195062 | H14: 168063 | I14: 84894 | J14: 13438 | K14: － | L14: 27506
A15: 6 | C15: 520581 | D15: 1662450 | E15: 811166 | F15: 387879 | G15: 256901 | H15: 213961 | I15: 156469 | J15: － | K15: 14458 | L15: 25408
A16: 前年度 対比 | C16: =C15/C14*100 -> 400.6164146 | D16: 120.7843189 | E16: 113.9506952 | F16: 128.6117862 | G16: 131.702228 | H16: 127.3099968 | I16: 184.3110232 | J16: － | K16: － | L16: =L15/L14*100 -> 92.37257326
A19: （注） | C19: １． 東京航空局新千歳空港事務所、函館空港事務所、旭川空港出張所、北海道エアポート株式会社資料による
C20: ２． 不定期（チャーター）便は除く
C21: ３． 中国（元年度）：北京・上海・天津・杭州・南京・大連・無錫・青島・福州・成都の合計値
C22: ４． 中国（5年度）：北京・上海・天津・杭州・深圳の合計値
C23: ５． 中国（6年度）：北京・上海・天津・深圳・西安の合計値
C24: ６． 韓国（4年度）：ソウル・釜山・大邱の合計値
C25: ７． 韓国（5年度）：ソウル・釜山・大邱・務安の合計値
C26: ８． 韓国（6年度）：ソウル・釜山・大邱・清州の合計値
C27: ９． 台湾（元年度）：台北・高雄の合計値
C28: １０． 台湾（4～5年度）：台北の合計値
C29: １１． 台湾（6年度）：台北・高雄の合計値
C30: １２． タイ：令和元年5月以降のバンコク（スワンナプーム・ドンムアン）の合計値
C31: １３． タイ（4～5年度）：バンコク（スワンナプーム）の合計値
C32: １４． タイ（6年度）：バンコク（スワンナプーム・ドンムアン）の合計値
C33: １５． その他（元年度）：グアム・ホノルル・バンコク（平成31年4月）・クアラルンプール・ユジノサハリンスク・シンガポール・マニラ・
C34: ウラジオストク・ミラノ・ダナン・マンペンサ・ウランバートル・ブダペスト・プラハ・サマルカンド・タシケント・ ヘルシンキ・シドニーの合計値
C35: １６． その他（4年度）：クアラルンプール・シンガポール・シドニーの合計値
C36: １７． その他（5年度）：シンガポール・マレーシア・ベトナム・オーストラリアの合計値
C37: １８． その他（6年度）：シンガポール・マレーシア・ベトナム・フィリピン・インドネシアの合計値
